{"text_format":"3","workbook":"xlsx","n_sheets":3,"sheets":["Údaje plánu","Flexibilný plán","Informácie"],"not_rendered":{"defined_names":5},"read":"whole","date_system":"1900"}

{"sheet":"Údaje plánu","index":0,"n_rows":13,"n_cols":7,"rows_kept":13,"merged":[[12,1,12,4]]}
["V tomto hárku môžete vytvoriť flexibilný plán zadaním dôležitých medzníkov alebo aktivít do tabuľky Údaje plánu.\nV bunke B1 je nadpis tohto hárka. \nV hárku Informácie je uvedený postup na použitie tohto hárka vrátane pokynov pre čítačky obrazovky.\nĎalšie pokyny nájdete v nasledujúcich bunkách v stĺpci A.","Údaje flexibilnej časovej osi"]
["V bunkách B2 až E2 sú záhlavia tabuľky. Pomocou filtrov záhlaví môžete zoradiť tabuľku a vyhľadať konkrétne položky.\nFlexibilný plán funguje najlepšie vtedy, keď je tabuľka zoradená vzostupne podľa stĺpca Priorita a potom podľa stĺpca Medzník alebo aktivita.\nV bunkách B3 až E12 tabuľky Údaje plánu sa nachádzajú vzorové údaje. \nPo dokončení medzníka alebo aktivity aktualizujte príslušné pole v stĺpci Výsledok, aby sa výsledky zobrazili v hárku Flexibilný plán. Zadaním výsledku Žiadna zmena zvýraznite medzníky, ktoré nemajú žiadny vplyv.\nĎalší pokyn nájdete v bunke A13.\n","Cieľ","Medzník alebo aktivita","Priorita","Výsledok",null,"<-- zoraďte tabuľku vzostupne podľa stĺpcov Priorita a Medzník alebo aktivita"]
[null,"Aktuálne","Aktivita 1\nZostavenie prototypu","1 – Vysoká",null,null,"<-- pridajte výsledok pre každý dokončený medzník Zadaním výsledku Žiadna zmena zvýraznite medzníky, ktoré nemajú žiadny vplyv."]
[null,"Krátkodobé","Aktivita 2\nUkážkový prototyp","1 – Vysoká"]
[null,"Aktuálne","Aktivita 6","1 – Vysoká"]
[null,"Budúce","Aktivita 7\nOutsourcing vývoja implementácie prvej fázy","1 – Vysoká"]
[null,"Dokončené","Aktivita 9\nSchválenie prvej fázy","1 – Vysoká","Zníženie o 10 %"]
[null,"Budúce","Aktivita 10","2 – Stredná"]
[null,"Krátkodobé","Aktivita 8","2 – Stredná"]
[null,"Dokončené","Aktivita 3","3 – Nízka","Žiadna zmena"]
[null,"Budúce","Aktivita 4","3 – Nízka"]
[null,"Aktuálne","Aktivita 5","3 – Nízka"]
["Ak chcete pridať nové položky, vložte do tabuľky nové riadky nad týmto riadkom.\nToto je posledný pokyn v tomto hárku.","Ak chcete pridať nové položky, vložte nové riadky nad týmto riadkom."]

{"sheet":"Flexibilný plán","index":1,"n_rows":100,"n_cols":8,"rows_kept":100}
["V tomto hárku je flexibilný plán zobrazujúci medzníky a aktivity z hárka Údaje plánu. \nV bunke B1 je nadpis. \nVýsledky, ktoré obsahujú slovné spojenie Žiadna zmena, sú zvýraznené svetlooranžovou farbou, rgb(255, 230, 210).\nDokončené medzníky alebo aktivity sú zvýraznené svetlozelenou farbou, rgb(237,251,219).","Flexibilný plán"]
["V bunkách B2, D2, F2 a H2 sú nadpisy grafu. Sú to tieto nadpisy: Dokončené, Aktuálne, Krátkodobé a Budúce. Úpravou týchto nadpisov zmeníte hodnoty na výber v stĺpci Cieľ tabuľky Údaje plánu v hárku Údaje plánu.\nBunky B3 až H20 obsahujú medzníky a aktivity patriace pod nadpisy v tomto riadku. \nMedzníky a aktivity sa vytvárajú v hárku Údaje plánu.\nNEUPRAVUJTE ani NEODSTRAŇUJTE záznamy v tomto hárku. Ak chcete aktualizovať obsah v tomto hárku, aktualizujte tabuľku Údaje plánu v hárku Údaje plánu.\nToto je posledný pokyn v tomto hárku.","Dokončené",null,"Aktuálne",null,"Krátkodobé",null,"Budúce"]
[null,{"$f":"IFERROR(INDEX(Aktivita,SMALL(IF(Cieľ=$B$2,ROW(Aktivita)-MIN(ROW(Aktivita))+1),ROWS($B$3:B3)))&\" \"&CHAR(10)&(INDEX(Výsledok,SMALL(IF(Cieľ=$B$2,ROW(Výsledok)-MIN(ROW(Výsledok))+1),ROWS($B$3:B3))))&CHAR(10),\"\")","v":"Aktivita 9\nSchválenie prvej fázy \nZníženie o 10 %\n"},null,{"$f":"IFERROR(INDEX(Aktivita,SMALL(IF(Cieľ=$D$2,ROW(Aktivita)-MIN(ROW(Aktivita))+1),ROWS($B$3:B3)))&CHAR(10),\"\")","v":"Aktivita 1\nZostavenie prototypu\n"},null,{"$f":"IFERROR(INDEX(Aktivita,SMALL(IF(Cieľ=$F$2,ROW(Aktivita)-MIN(ROW(Aktivita))+1),ROWS($B$3:B3)))&CHAR(10),\"\")","v":"Aktivita 2\nUkážkový prototyp\n"},null,{"$f":"IFERROR(INDEX(Aktivita,SMALL(IF(Cieľ=$H$2,ROW(Aktivita)-MIN(ROW(Aktivita))+1),ROWS($B$3:B3)))&CHAR(10),\"\")","v":"Aktivita 7\nOutsourcing vývoja implementácie prvej fázy\n"}]
[null,{"$f":"IFERROR(INDEX(Aktivita,SMALL(IF(Cieľ=$B$2,ROW(Aktivita)-MIN(ROW(Aktivita))+1),ROWS($B$3:B4)))&\" \"&CHAR(10)&(INDEX(Výsledok,SMALL(IF(Cieľ=$B$2,ROW(Výsledok)-MIN(ROW(Výsledok))+1),ROWS($B$3:B4))))&CHAR(10),\"\")","v":"Aktivita 3 \nŽiadna zmena\n"},null,{"$f":"IFERROR(INDEX(Aktivita,SMALL(IF(Cieľ=$D$2,ROW(Aktivita)-MIN(ROW(Aktivita))+1),ROWS($B$3:B4)))&CHAR(10),\"\")","v":"Aktivita 6\n"},null,{"$f":"IFERROR(INDEX(Aktivita,SMALL(IF(Cieľ=$F$2,ROW(Aktivita)-MIN(ROW(Aktivita))+1),ROWS($B$3:B4)))&CHAR(10),\"\")","v":"Aktivita 8\n"},null,{"$f":"IFERROR(INDEX(Aktivita,SMALL(IF(Cieľ=$H$2,ROW(Aktivita)-MIN(ROW(Aktivita))+1),ROWS($B$3:B4)))&CHAR(10),\"\")","v":"Aktivita 10\n"}]
[null,{"$f":"IFERROR(INDEX(Aktivita,SMALL(IF(Cieľ=$B$2,ROW(Aktivita)-MIN(ROW(Aktivita))+1),ROWS($B$3:B5)))&\" \"&CHAR(10)&(INDEX(Výsledok,SMALL(IF(Cieľ=$B$2,ROW(Výsledok)-MIN(ROW(Výsledok))+1),ROWS($B$3:B5))))&CHAR(10),\"\")","v":""},null,{"$f":"IFERROR(INDEX(Aktivita,SMALL(IF(Cieľ=$D$2,ROW(Aktivita)-MIN(ROW(Aktivita))+1),ROWS($B$3:B5)))&CHAR(10),\"\")","v":"Aktivita 5\n"},null,{"$f":"IFERROR(INDEX(Aktivita,SMALL(IF(Cieľ=$F$2,ROW(Aktivita)-MIN(ROW(Aktivita))+1),ROWS($B$3:B5)))&CHAR(10),\"\")","v":""},null,{"$f":"IFERROR(INDEX(Aktivita,SMALL(IF(Cieľ=$H$2,ROW(Aktivita)-MIN(ROW(Aktivita))+1),ROWS($B$3:B5)))&CHAR(10),\"\")","v":"Aktivita 4\n"}]
[null,{"$f":"IFERROR(INDEX(Aktivita,SMALL(IF(Cieľ=$B$2,ROW(Aktivita)-MIN(ROW(Aktivita))+1),ROWS($B$3:B6)))&\" \"&CHAR(10)&(INDEX(Výsledok,SMALL(IF(Cieľ=$B$2,ROW(Výsledok)-MIN(ROW(Výsledok))+1),ROWS($B$3:B6))))&CHAR(10),\"\")","v":""},null,{"$f":"IFERROR(INDEX(Aktivita,SMALL(IF(Cieľ=$D$2,ROW(Aktivita)-MIN(ROW(Aktivita))+1),ROWS($B$3:B6)))&CHAR(10),\"\")","v":""},null,{"$f":"IFERROR(INDEX(Aktivita,SMALL(IF(Cieľ=$F$2,ROW(Aktivita)-MIN(ROW(Aktivita))+1),ROWS($B$3:B6)))&CHAR(10),\"\")","v":""},null,{"$f":"IFERROR(INDEX(Aktivita,SMALL(IF(Cieľ=$H$2,ROW(Aktivita)-MIN(ROW(Aktivita))+1),ROWS($B$3:B6)))&CHAR(10),\"\")","v":""}]
[null,{"$f":"IFERROR(INDEX(Aktivita,SMALL(IF(Cieľ=$B$2,ROW(Aktivita)-MIN(ROW(Aktivita))+1),ROWS($B$3:B7)))&\" \"&CHAR(10)&(INDEX(Výsledok,SMALL(IF(Cieľ=$B$2,ROW(Výsledok)-MIN(ROW(Výsledok))+1),ROWS($B$3:B7))))&CHAR(10),\"\")","v":""},null,{"$f":"IFERROR(INDEX(Aktivita,SMALL(IF(Cieľ=$D$2,ROW(Aktivita)-MIN(ROW(Aktivita))+1),ROWS($B$3:B7)))&CHAR(10),\"\")","v":""},null,{"$f":"IFERROR(INDEX(Aktivita,SMALL(IF(Cieľ=$F$2,ROW(Aktivita)-MIN(ROW(Aktivita))+1),ROWS($B$3:B7)))&CHAR(10),\"\")","v":""},null,{"$f":"IFERROR(INDEX(Aktivita,SMALL(IF(Cieľ=$H$2,ROW(Aktivita)-MIN(ROW(Aktivita))+1),ROWS($B$3:B7)))&CHAR(10),\"\")","v":""}]
[null,{"$f":"IFERROR(INDEX(Aktivita,SMALL(IF(Cieľ=$B$2,ROW(Aktivita)-MIN(ROW(Aktivita))+1),ROWS($B$3:B8)))&\" \"&CHAR(10)&(INDEX(Výsledok,SMALL(IF(Cieľ=$B$2,ROW(Výsledok)-MIN(ROW(Výsledok))+1),ROWS($B$3:B8))))&CHAR(10),\"\")","v":""},null,{"$f":"IFERROR(INDEX(Aktivita,SMALL(IF(Cieľ=$D$2,ROW(Aktivita)-MIN(ROW(Aktivita))+1),ROWS($B$3:B8)))&CHAR(10),\"\")","v":""},null,{"$f":"IFERROR(INDEX(Aktivita,SMALL(IF(Cieľ=$F$2,ROW(Aktivita)-MIN(ROW(Aktivita))+1),ROWS($B$3:B8)))&CHAR(10),\"\")","v":""},null,{"$f":"IFERROR(INDEX(Aktivita,SMALL(IF(Cieľ=$H$2,ROW(Aktivita)-MIN(ROW(Aktivita))+1),ROWS($B$3:B8)))&CHAR(10),\"\")","v":""}]
[null,{"$f":"IFERROR(INDEX(Aktivita,SMALL(IF(Cieľ=$B$2,ROW(Aktivita)-MIN(ROW(Aktivita))+1),ROWS($B$3:B9)))&\" \"&CHAR(10)&(INDEX(Výsledok,SMALL(IF(Cieľ=$B$2,ROW(Výsledok)-MIN(ROW(Výsledok))+1),ROWS($B$3:B9))))&CHAR(10),\"\")","v":""},null,{"$f":"IFERROR(INDEX(Aktivita,SMALL(IF(Cieľ=$D$2,ROW(Aktivita)-MIN(ROW(Aktivita))+1),ROWS($B$3:B9)))&CHAR(10),\"\")","v":""},null,{"$f":"IFERROR(INDEX(Aktivita,SMALL(IF(Cieľ=$F$2,ROW(Aktivita)-MIN(ROW(Aktivita))+1),ROWS($B$3:B9)))&CHAR(10),\"\")","v":""},null,{"$f":"IFERROR(INDEX(Aktivita,SMALL(IF(Cieľ=$H$2,ROW(Aktivita)-MIN(ROW(Aktivita))+1),ROWS($B$3:B9)))&CHAR(10),\"\")","v":""}]
[null,{"$f":"IFERROR(INDEX(Aktivita,SMALL(IF(Cieľ=$B$2,ROW(Aktivita)-MIN(ROW(Aktivita))+1),ROWS($B$3:B10)))&\" \"&CHAR(10)&(INDEX(Výsledok,SMALL(IF(Cieľ=$B$2,ROW(Výsledok)-MIN(ROW(Výsledok))+1),ROWS($B$3:B10))))&CHAR(10),\"\")","v":""},null,{"$f":"IFERROR(INDEX(Aktivita,SMALL(IF(Cieľ=$D$2,ROW(Aktivita)-MIN(ROW(Aktivita))+1),ROWS($B$3:B10)))&CHAR(10),\"\")","v":""},null,{"$f":"IFERROR(INDEX(Aktivita,SMALL(IF(Cieľ=$F$2,ROW(Aktivita)-MIN(ROW(Aktivita))+1),ROWS($B$3:B10)))&CHAR(10),\"\")","v":""},null,{"$f":"IFERROR(INDEX(Aktivita,SMALL(IF(Cieľ=$H$2,ROW(Aktivita)-MIN(ROW(Aktivita))+1),ROWS($B$3:B10)))&CHAR(10),\"\")","v":""}]
[null,{"$f":"IFERROR(INDEX(Aktivita,SMALL(IF(Cieľ=$B$2,ROW(Aktivita)-MIN(ROW(Aktivita))+1),ROWS($B$3:B11)))&\" \"&CHAR(10)&(INDEX(Výsledok,SMALL(IF(Cieľ=$B$2,ROW(Výsledok)-MIN(ROW(Výsledok))+1),ROWS($B$3:B11))))&CHAR(10),\"\")","v":""},null,{"$f":"IFERROR(INDEX(Aktivita,SMALL(IF(Cieľ=$D$2,ROW(Aktivita)-MIN(ROW(Aktivita))+1),ROWS($B$3:B11)))&CHAR(10),\"\")","v":""},null,{"$f":"IFERROR(INDEX(Aktivita,SMALL(IF(Cieľ=$F$2,ROW(Aktivita)-MIN(ROW(Aktivita))+1),ROWS($B$3:B11)))&CHAR(10),\"\")","v":""},null,{"$f":"IFERROR(INDEX(Aktivita,SMALL(IF(Cieľ=$H$2,ROW(Aktivita)-MIN(ROW(Aktivita))+1),ROWS($B$3:B11)))&CHAR(10),\"\")","v":""}]
[null,{"$f":"IFERROR(INDEX(Aktivita,SMALL(IF(Cieľ=$B$2,ROW(Aktivita)-MIN(ROW(Aktivita))+1),ROWS($B$3:B12)))&\" \"&CHAR(10)&(INDEX(Výsledok,SMALL(IF(Cieľ=$B$2,ROW(Výsledok)-MIN(ROW(Výsledok))+1),ROWS($B$3:B12))))&CHAR(10),\"\")","v":""},null,{"$f":"IFERROR(INDEX(Aktivita,SMALL(IF(Cieľ=$D$2,ROW(Aktivita)-MIN(ROW(Aktivita))+1),ROWS($B$3:B12)))&CHAR(10),\"\")","v":""},null,{"$f":"IFERROR(INDEX(Aktivita,SMALL(IF(Cieľ=$F$2,ROW(Aktivita)-MIN(ROW(Aktivita))+1),ROWS($B$3:B12)))&CHAR(10),\"\")","v":""},null,{"$f":"IFERROR(INDEX(Aktivita,SMALL(IF(Cieľ=$H$2,ROW(Aktivita)-MIN(ROW(Aktivita))+1),ROWS($B$3:B12)))&CHAR(10),\"\")","v":""}]
[null,{"$f":"IFERROR(INDEX(Aktivita,SMALL(IF(Cieľ=$B$2,ROW(Aktivita)-MIN(ROW(Aktivita))+1),ROWS($B$3:B13)))&\" \"&CHAR(10)&(INDEX(Výsledok,SMALL(IF(Cieľ=$B$2,ROW(Výsledok)-MIN(ROW(Výsledok))+1),ROWS($B$3:B13))))&CHAR(10),\"\")","v":""},null,{"$f":"IFERROR(INDEX(Aktivita,SMALL(IF(Cieľ=$D$2,ROW(Aktivita)-MIN(ROW(Aktivita))+1),ROWS($B$3:B13)))&CHAR(10),\"\")","v":""},null,{"$f":"IFERROR(INDEX(Aktivita,SMALL(IF(Cieľ=$F$2,ROW(Aktivita)-MIN(ROW(Aktivita))+1),ROWS($B$3:B13)))&CHAR(10),\"\")","v":""},null,{"$f":"IFERROR(INDEX(Aktivita,SMALL(IF(Cieľ=$H$2,ROW(Aktivita)-MIN(ROW(Aktivita))+1),ROWS($B$3:B13)))&CHAR(10),\"\")","v":""}]
[null,{"$f":"IFERROR(INDEX(Aktivita,SMALL(IF(Cieľ=$B$2,ROW(Aktivita)-MIN(ROW(Aktivita))+1),ROWS($B$3:B14)))&\" \"&CHAR(10)&(INDEX(Výsledok,SMALL(IF(Cieľ=$B$2,ROW(Výsledok)-MIN(ROW(Výsledok))+1),ROWS($B$3:B14))))&CHAR(10),\"\")","v":""},null,{"$f":"IFERROR(INDEX(Aktivita,SMALL(IF(Cieľ=$D$2,ROW(Aktivita)-MIN(ROW(Aktivita))+1),ROWS($B$3:B14)))&CHAR(10),\"\")","v":""},null,{"$f":"IFERROR(INDEX(Aktivita,SMALL(IF(Cieľ=$F$2,ROW(Aktivita)-MIN(ROW(Aktivita))+1),ROWS($B$3:B14)))&CHAR(10),\"\")","v":""},null,{"$f":"IFERROR(INDEX(Aktivita,SMALL(IF(Cieľ=$H$2,ROW(Aktivita)-MIN(ROW(Aktivita))+1),ROWS($B$3:B14)))&CHAR(10),\"\")","v":""}]
[null,{"$f":"IFERROR(INDEX(Aktivita,SMALL(IF(Cieľ=$B$2,ROW(Aktivita)-MIN(ROW(Aktivita))+1),ROWS($B$3:B15)))&\" \"&CHAR(10)&(INDEX(Výsledok,SMALL(IF(Cieľ=$B$2,ROW(Výsledok)-MIN(ROW(Výsledok))+1),ROWS($B$3:B15))))&CHAR(10),\"\")","v":""},null,{"$f":"IFERROR(INDEX(Aktivita,SMALL(IF(Cieľ=$D$2,ROW(Aktivita)-MIN(ROW(Aktivita))+1),ROWS($B$3:B15)))&CHAR(10),\"\")","v":""},null,{"$f":"IFERROR(INDEX(Aktivita,SMALL(IF(Cieľ=$F$2,ROW(Aktivita)-MIN(ROW(Aktivita))+1),ROWS($B$3:B15)))&CHAR(10),\"\")","v":""},null,{"$f":"IFERROR(INDEX(Aktivita,SMALL(IF(Cieľ=$H$2,ROW(Aktivita)-MIN(ROW(Aktivita))+1),ROWS($B$3:B15)))&CHAR(10),\"\")","v":""}]
[null,{"$f":"IFERROR(INDEX(Aktivita,SMALL(IF(Cieľ=$B$2,ROW(Aktivita)-MIN(ROW(Aktivita))+1),ROWS($B$3:B16)))&\" \"&CHAR(10)&(INDEX(Výsledok,SMALL(IF(Cieľ=$B$2,ROW(Výsledok)-MIN(ROW(Výsledok))+1),ROWS($B$3:B16))))&CHAR(10),\"\")","v":""},null,{"$f":"IFERROR(INDEX(Aktivita,SMALL(IF(Cieľ=$D$2,ROW(Aktivita)-MIN(ROW(Aktivita))+1),ROWS($B$3:B16)))&CHAR(10),\"\")","v":""},null,{"$f":"IFERROR(INDEX(Aktivita,SMALL(IF(Cieľ=$F$2,ROW(Aktivita)-MIN(ROW(Aktivita))+1),ROWS($B$3:B16)))&CHAR(10),\"\")","v":""},null,{"$f":"IFERROR(INDEX(Aktivita,SMALL(IF(Cieľ=$H$2,ROW(Aktivita)-MIN(ROW(Aktivita))+1),ROWS($B$3:B16)))&CHAR(10),\"\")","v":""}]
[null,{"$f":"IFERROR(INDEX(Aktivita,SMALL(IF(Cieľ=$B$2,ROW(Aktivita)-MIN(ROW(Aktivita))+1),ROWS($B$3:B17)))&\" \"&CHAR(10)&(INDEX(Výsledok,SMALL(IF(Cieľ=$B$2,ROW(Výsledok)-MIN(ROW(Výsledok))+1),ROWS($B$3:B17))))&CHAR(10),\"\")","v":""},null,{"$f":"IFERROR(INDEX(Aktivita,SMALL(IF(Cieľ=$D$2,ROW(Aktivita)-MIN(ROW(Aktivita))+1),ROWS($B$3:B17)))&CHAR(10),\"\")","v":""},null,{"$f":"IFERROR(INDEX(Aktivita,SMALL(IF(Cieľ=$F$2,ROW(Aktivita)-MIN(ROW(Aktivita))+1),ROWS($B$3:B17)))&CHAR(10),\"\")","v":""},null,{"$f":"IFERROR(INDEX(Aktivita,SMALL(IF(Cieľ=$H$2,ROW(Aktivita)-MIN(ROW(Aktivita))+1),ROWS($B$3:B17)))&CHAR(10),\"\")","v":""}]
[null,{"$f":"IFERROR(INDEX(Aktivita,SMALL(IF(Cieľ=$B$2,ROW(Aktivita)-MIN(ROW(Aktivita))+1),ROWS($B$3:B18)))&\" \"&CHAR(10)&(INDEX(Výsledok,SMALL(IF(Cieľ=$B$2,ROW(Výsledok)-MIN(ROW(Výsledok))+1),ROWS($B$3:B18))))&CHAR(10),\"\")","v":""},null,{"$f":"IFERROR(INDEX(Aktivita,SMALL(IF(Cieľ=$D$2,ROW(Aktivita)-MIN(ROW(Aktivita))+1),ROWS($B$3:B18)))&CHAR(10),\"\")","v":""},null,{"$f":"IFERROR(INDEX(Aktivita,SMALL(IF(Cieľ=$F$2,ROW(Aktivita)-MIN(ROW(Aktivita))+1),ROWS($B$3:B18)))&CHAR(10),\"\")","v":""},null,{"$f":"IFERROR(INDEX(Aktivita,SMALL(IF(Cieľ=$H$2,ROW(Aktivita)-MIN(ROW(Aktivita))+1),ROWS($B$3:B18)))&CHAR(10),\"\")","v":""}]
[null,{"$f":"IFERROR(INDEX(Aktivita,SMALL(IF(Cieľ=$B$2,ROW(Aktivita)-MIN(ROW(Aktivita))+1),ROWS($B$3:B19)))&\" \"&CHAR(10)&(INDEX(Výsledok,SMALL(IF(Cieľ=$B$2,ROW(Výsledok)-MIN(ROW(Výsledok))+1),ROWS($B$3:B19))))&CHAR(10),\"\")","v":""},null,{"$f":"IFERROR(INDEX(Aktivita,SMALL(IF(Cieľ=$D$2,ROW(Aktivita)-MIN(ROW(Aktivita))+1),ROWS($B$3:B19)))&CHAR(10),\"\")","v":""},null,{"$f":"IFERROR(INDEX(Aktivita,SMALL(IF(Cieľ=$F$2,ROW(Aktivita)-MIN(ROW(Aktivita))+1),ROWS($B$3:B19)))&CHAR(10),\"\")","v":""},null,{"$f":"IFERROR(INDEX(Aktivita,SMALL(IF(Cieľ=$H$2,ROW(Aktivita)-MIN(ROW(Aktivita))+1),ROWS($B$3:B19)))&CHAR(10),\"\")","v":""}]
[null,{"$f":"IFERROR(INDEX(Aktivita,SMALL(IF(Cieľ=$B$2,ROW(Aktivita)-MIN(ROW(Aktivita))+1),ROWS($B$3:B20)))&\" \"&CHAR(10)&(INDEX(Výsledok,SMALL(IF(Cieľ=$B$2,ROW(Výsledok)-MIN(ROW(Výsledok))+1),ROWS($B$3:B20))))&CHAR(10),\"\")","v":""},null,{"$f":"IFERROR(INDEX(Aktivita,SMALL(IF(Cieľ=$D$2,ROW(Aktivita)-MIN(ROW(Aktivita))+1),ROWS($B$3:B20)))&CHAR(10),\"\")","v":""},null,{"$f":"IFERROR(INDEX(Aktivita,SMALL(IF(Cieľ=$F$2,ROW(Aktivita)-MIN(ROW(Aktivita))+1),ROWS($B$3:B20)))&CHAR(10),\"\")","v":""},null,{"$f":"IFERROR(INDEX(Aktivita,SMALL(IF(Cieľ=$H$2,ROW(Aktivita)-MIN(ROW(Aktivita))+1),ROWS($B$3:B20)))&CHAR(10),\"\")","v":""}]
[null,{"$f":"IFERROR(INDEX(Aktivita,SMALL(IF(Cieľ=$B$2,ROW(Aktivita)-MIN(ROW(Aktivita))+1),ROWS($B$3:B21)))&\" \"&CHAR(10)&(INDEX(Výsledok,SMALL(IF(Cieľ=$B$2,ROW(Výsledok)-MIN(ROW(Výsledok))+1),ROWS($B$3:B21))))&CHAR(10),\"\")","v":""},null,{"$f":"IFERROR(INDEX(Aktivita,SMALL(IF(Cieľ=$D$2,ROW(Aktivita)-MIN(ROW(Aktivita))+1),ROWS($B$3:B21)))&CHAR(10),\"\")","v":""},null,{"$f":"IFERROR(INDEX(Aktivita,SMALL(IF(Cieľ=$F$2,ROW(Aktivita)-MIN(ROW(Aktivita))+1),ROWS($B$3:B21)))&CHAR(10),\"\")","v":""},null,{"$f":"IFERROR(INDEX(Aktivita,SMALL(IF(Cieľ=$H$2,ROW(Aktivita)-MIN(ROW(Aktivita))+1),ROWS($B$3:B21)))&CHAR(10),\"\")","v":""}]
[null,{"$f":"IFERROR(INDEX(Aktivita,SMALL(IF(Cieľ=$B$2,ROW(Aktivita)-MIN(ROW(Aktivita))+1),ROWS($B$3:B22)))&\" \"&CHAR(10)&(INDEX(Výsledok,SMALL(IF(Cieľ=$B$2,ROW(Výsledok)-MIN(ROW(Výsledok))+1),ROWS($B$3:B22))))&CHAR(10),\"\")","v":""},null,{"$f":"IFERROR(INDEX(Aktivita,SMALL(IF(Cieľ=$D$2,ROW(Aktivita)-MIN(ROW(Aktivita))+1),ROWS($B$3:B22)))&CHAR(10),\"\")","v":""},null,{"$f":"IFERROR(INDEX(Aktivita,SMALL(IF(Cieľ=$F$2,ROW(Aktivita)-MIN(ROW(Aktivita))+1),ROWS($B$3:B22)))&CHAR(10),\"\")","v":""},null,{"$f":"IFERROR(INDEX(Aktivita,SMALL(IF(Cieľ=$H$2,ROW(Aktivita)-MIN(ROW(Aktivita))+1),ROWS($B$3:B22)))&CHAR(10),\"\")","v":""}]
[null,{"$f":"IFERROR(INDEX(Aktivita,SMALL(IF(Cieľ=$B$2,ROW(Aktivita)-MIN(ROW(Aktivita))+1),ROWS($B$3:B23)))&\" \"&CHAR(10)&(INDEX(Výsledok,SMALL(IF(Cieľ=$B$2,ROW(Výsledok)-MIN(ROW(Výsledok))+1),ROWS($B$3:B23))))&CHAR(10),\"\")","v":""},null,{"$f":"IFERROR(INDEX(Aktivita,SMALL(IF(Cieľ=$D$2,ROW(Aktivita)-MIN(ROW(Aktivita))+1),ROWS($B$3:B23)))&CHAR(10),\"\")","v":""},null,{"$f":"IFERROR(INDEX(Aktivita,SMALL(IF(Cieľ=$F$2,ROW(Aktivita)-MIN(ROW(Aktivita))+1),ROWS($B$3:B23)))&CHAR(10),\"\")","v":""},null,{"$f":"IFERROR(INDEX(Aktivita,SMALL(IF(Cieľ=$H$2,ROW(Aktivita)-MIN(ROW(Aktivita))+1),ROWS($B$3:B23)))&CHAR(10),\"\")","v":""}]
[null,{"$f":"IFERROR(INDEX(Aktivita,SMALL(IF(Cieľ=$B$2,ROW(Aktivita)-MIN(ROW(Aktivita))+1),ROWS($B$3:B24)))&\" \"&CHAR(10)&(INDEX(Výsledok,SMALL(IF(Cieľ=$B$2,ROW(Výsledok)-MIN(ROW(Výsledok))+1),ROWS($B$3:B24))))&CHAR(10),\"\")","v":""},null,{"$f":"IFERROR(INDEX(Aktivita,SMALL(IF(Cieľ=$D$2,ROW(Aktivita)-MIN(ROW(Aktivita))+1),ROWS($B$3:B24)))&CHAR(10),\"\")","v":""},null,{"$f":"IFERROR(INDEX(Aktivita,SMALL(IF(Cieľ=$F$2,ROW(Aktivita)-MIN(ROW(Aktivita))+1),ROWS($B$3:B24)))&CHAR(10),\"\")","v":""},null,{"$f":"IFERROR(INDEX(Aktivita,SMALL(IF(Cieľ=$H$2,ROW(Aktivita)-MIN(ROW(Aktivita))+1),ROWS($B$3:B24)))&CHAR(10),\"\")","v":""}]
[null,{"$f":"IFERROR(INDEX(Aktivita,SMALL(IF(Cieľ=$B$2,ROW(Aktivita)-MIN(ROW(Aktivita))+1),ROWS($B$3:B25)))&\" \"&CHAR(10)&(INDEX(Výsledok,SMALL(IF(Cieľ=$B$2,ROW(Výsledok)-MIN(ROW(Výsledok))+1),ROWS($B$3:B25))))&CHAR(10),\"\")","v":""},null,{"$f":"IFERROR(INDEX(Aktivita,SMALL(IF(Cieľ=$D$2,ROW(Aktivita)-MIN(ROW(Aktivita))+1),ROWS($B$3:B25)))&CHAR(10),\"\")","v":""},null,{"$f":"IFERROR(INDEX(Aktivita,SMALL(IF(Cieľ=$F$2,ROW(Aktivita)-MIN(ROW(Aktivita))+1),ROWS($B$3:B25)))&CHAR(10),\"\")","v":""},null,{"$f":"IFERROR(INDEX(Aktivita,SMALL(IF(Cieľ=$H$2,ROW(Aktivita)-MIN(ROW(Aktivita))+1),ROWS($B$3:B25)))&CHAR(10),\"\")","v":""}]
[null,{"$f":"IFERROR(INDEX(Aktivita,SMALL(IF(Cieľ=$B$2,ROW(Aktivita)-MIN(ROW(Aktivita))+1),ROWS($B$3:B26)))&\" \"&CHAR(10)&(INDEX(Výsledok,SMALL(IF(Cieľ=$B$2,ROW(Výsledok)-MIN(ROW(Výsledok))+1),ROWS($B$3:B26))))&CHAR(10),\"\")","v":""},null,{"$f":"IFERROR(INDEX(Aktivita,SMALL(IF(Cieľ=$D$2,ROW(Aktivita)-MIN(ROW(Aktivita))+1),ROWS($B$3:B26)))&CHAR(10),\"\")","v":""},null,{"$f":"IFERROR(INDEX(Aktivita,SMALL(IF(Cieľ=$F$2,ROW(Aktivita)-MIN(ROW(Aktivita))+1),ROWS($B$3:B26)))&CHAR(10),\"\")","v":""},null,{"$f":"IFERROR(INDEX(Aktivita,SMALL(IF(Cieľ=$H$2,ROW(Aktivita)-MIN(ROW(Aktivita))+1),ROWS($B$3:B26)))&CHAR(10),\"\")","v":""}]
[null,{"$f":"IFERROR(INDEX(Aktivita,SMALL(IF(Cieľ=$B$2,ROW(Aktivita)-MIN(ROW(Aktivita))+1),ROWS($B$3:B27)))&\" \"&CHAR(10)&(INDEX(Výsledok,SMALL(IF(Cieľ=$B$2,ROW(Výsledok)-MIN(ROW(Výsledok))+1),ROWS($B$3:B27))))&CHAR(10),\"\")","v":""},null,{"$f":"IFERROR(INDEX(Aktivita,SMALL(IF(Cieľ=$D$2,ROW(Aktivita)-MIN(ROW(Aktivita))+1),ROWS($B$3:B27)))&CHAR(10),\"\")","v":""},null,{"$f":"IFERROR(INDEX(Aktivita,SMALL(IF(Cieľ=$F$2,ROW(Aktivita)-MIN(ROW(Aktivita))+1),ROWS($B$3:B27)))&CHAR(10),\"\")","v":""},null,{"$f":"IFERROR(INDEX(Aktivita,SMALL(IF(Cieľ=$H$2,ROW(Aktivita)-MIN(ROW(Aktivita))+1),ROWS($B$3:B27)))&CHAR(10),\"\")","v":""}]
[null,{"$f":"IFERROR(INDEX(Aktivita,SMALL(IF(Cieľ=$B$2,ROW(Aktivita)-MIN(ROW(Aktivita))+1),ROWS($B$3:B28)))&\" \"&CHAR(10)&(INDEX(Výsledok,SMALL(IF(Cieľ=$B$2,ROW(Výsledok)-MIN(ROW(Výsledok))+1),ROWS($B$3:B28))))&CHAR(10),\"\")","v":""},null,{"$f":"IFERROR(INDEX(Aktivita,SMALL(IF(Cieľ=$D$2,ROW(Aktivita)-MIN(ROW(Aktivita))+1),ROWS($B$3:B28)))&CHAR(10),\"\")","v":""},null,{"$f":"IFERROR(INDEX(Aktivita,SMALL(IF(Cieľ=$F$2,ROW(Aktivita)-MIN(ROW(Aktivita))+1),ROWS($B$3:B28)))&CHAR(10),\"\")","v":""},null,{"$f":"IFERROR(INDEX(Aktivita,SMALL(IF(Cieľ=$H$2,ROW(Aktivita)-MIN(ROW(Aktivita))+1),ROWS($B$3:B28)))&CHAR(10),\"\")","v":""}]
[null,{"$f":"IFERROR(INDEX(Aktivita,SMALL(IF(Cieľ=$B$2,ROW(Aktivita)-MIN(ROW(Aktivita))+1),ROWS($B$3:B29)))&\" \"&CHAR(10)&(INDEX(Výsledok,SMALL(IF(Cieľ=$B$2,ROW(Výsledok)-MIN(ROW(Výsledok))+1),ROWS($B$3:B29))))&CHAR(10),\"\")","v":""},null,{"$f":"IFERROR(INDEX(Aktivita,SMALL(IF(Cieľ=$D$2,ROW(Aktivita)-MIN(ROW(Aktivita))+1),ROWS($B$3:B29)))&CHAR(10),\"\")","v":""},null,{"$f":"IFERROR(INDEX(Aktivita,SMALL(IF(Cieľ=$F$2,ROW(Aktivita)-MIN(ROW(Aktivita))+1),ROWS($B$3:B29)))&CHAR(10),\"\")","v":""},null,{"$f":"IFERROR(INDEX(Aktivita,SMALL(IF(Cieľ=$H$2,ROW(Aktivita)-MIN(ROW(Aktivita))+1),ROWS($B$3:B29)))&CHAR(10),\"\")","v":""}]
[null,{"$f":"IFERROR(INDEX(Aktivita,SMALL(IF(Cieľ=$B$2,ROW(Aktivita)-MIN(ROW(Aktivita))+1),ROWS($B$3:B30)))&\" \"&CHAR(10)&(INDEX(Výsledok,SMALL(IF(Cieľ=$B$2,ROW(Výsledok)-MIN(ROW(Výsledok))+1),ROWS($B$3:B30))))&CHAR(10),\"\")","v":""},null,{"$f":"IFERROR(INDEX(Aktivita,SMALL(IF(Cieľ=$D$2,ROW(Aktivita)-MIN(ROW(Aktivita))+1),ROWS($B$3:B30)))&CHAR(10),\"\")","v":""},null,{"$f":"IFERROR(INDEX(Aktivita,SMALL(IF(Cieľ=$F$2,ROW(Aktivita)-MIN(ROW(Aktivita))+1),ROWS($B$3:B30)))&CHAR(10),\"\")","v":""},null,{"$f":"IFERROR(INDEX(Aktivita,SMALL(IF(Cieľ=$H$2,ROW(Aktivita)-MIN(ROW(Aktivita))+1),ROWS($B$3:B30)))&CHAR(10),\"\")","v":""}]
[null,{"$f":"IFERROR(INDEX(Aktivita,SMALL(IF(Cieľ=$B$2,ROW(Aktivita)-MIN(ROW(Aktivita))+1),ROWS($B$3:B31)))&\" \"&CHAR(10)&(INDEX(Výsledok,SMALL(IF(Cieľ=$B$2,ROW(Výsledok)-MIN(ROW(Výsledok))+1),ROWS($B$3:B31))))&CHAR(10),\"\")","v":""},null,{"$f":"IFERROR(INDEX(Aktivita,SMALL(IF(Cieľ=$D$2,ROW(Aktivita)-MIN(ROW(Aktivita))+1),ROWS($B$3:B31)))&CHAR(10),\"\")","v":""},null,{"$f":"IFERROR(INDEX(Aktivita,SMALL(IF(Cieľ=$F$2,ROW(Aktivita)-MIN(ROW(Aktivita))+1),ROWS($B$3:B31)))&CHAR(10),\"\")","v":""},null,{"$f":"IFERROR(INDEX(Aktivita,SMALL(IF(Cieľ=$H$2,ROW(Aktivita)-MIN(ROW(Aktivita))+1),ROWS($B$3:B31)))&CHAR(10),\"\")","v":""}]
[null,{"$f":"IFERROR(INDEX(Aktivita,SMALL(IF(Cieľ=$B$2,ROW(Aktivita)-MIN(ROW(Aktivita))+1),ROWS($B$3:B32)))&\" \"&CHAR(10)&(INDEX(Výsledok,SMALL(IF(Cieľ=$B$2,ROW(Výsledok)-MIN(ROW(Výsledok))+1),ROWS($B$3:B32))))&CHAR(10),\"\")","v":""},null,{"$f":"IFERROR(INDEX(Aktivita,SMALL(IF(Cieľ=$D$2,ROW(Aktivita)-MIN(ROW(Aktivita))+1),ROWS($B$3:B32)))&CHAR(10),\"\")","v":""},null,{"$f":"IFERROR(INDEX(Aktivita,SMALL(IF(Cieľ=$F$2,ROW(Aktivita)-MIN(ROW(Aktivita))+1),ROWS($B$3:B32)))&CHAR(10),\"\")","v":""},null,{"$f":"IFERROR(INDEX(Aktivita,SMALL(IF(Cieľ=$H$2,ROW(Aktivita)-MIN(ROW(Aktivita))+1),ROWS($B$3:B32)))&CHAR(10),\"\")","v":""}]
[null,{"$f":"IFERROR(INDEX(Aktivita,SMALL(IF(Cieľ=$B$2,ROW(Aktivita)-MIN(ROW(Aktivita))+1),ROWS($B$3:B33)))&\" \"&CHAR(10)&(INDEX(Výsledok,SMALL(IF(Cieľ=$B$2,ROW(Výsledok)-MIN(ROW(Výsledok))+1),ROWS($B$3:B33))))&CHAR(10),\"\")","v":""},null,{"$f":"IFERROR(INDEX(Aktivita,SMALL(IF(Cieľ=$D$2,ROW(Aktivita)-MIN(ROW(Aktivita))+1),ROWS($B$3:B33)))&CHAR(10),\"\")","v":""},null,{"$f":"IFERROR(INDEX(Aktivita,SMALL(IF(Cieľ=$F$2,ROW(Aktivita)-MIN(ROW(Aktivita))+1),ROWS($B$3:B33)))&CHAR(10),\"\")","v":""},null,{"$f":"IFERROR(INDEX(Aktivita,SMALL(IF(Cieľ=$H$2,ROW(Aktivita)-MIN(ROW(Aktivita))+1),ROWS($B$3:B33)))&CHAR(10),\"\")","v":""}]
[null,{"$f":"IFERROR(INDEX(Aktivita,SMALL(IF(Cieľ=$B$2,ROW(Aktivita)-MIN(ROW(Aktivita))+1),ROWS($B$3:B34)))&\" \"&CHAR(10)&(INDEX(Výsledok,SMALL(IF(Cieľ=$B$2,ROW(Výsledok)-MIN(ROW(Výsledok))+1),ROWS($B$3:B34))))&CHAR(10),\"\")","v":""},null,{"$f":"IFERROR(INDEX(Aktivita,SMALL(IF(Cieľ=$D$2,ROW(Aktivita)-MIN(ROW(Aktivita))+1),ROWS($B$3:B34)))&CHAR(10),\"\")","v":""},null,{"$f":"IFERROR(INDEX(Aktivita,SMALL(IF(Cieľ=$F$2,ROW(Aktivita)-MIN(ROW(Aktivita))+1),ROWS($B$3:B34)))&CHAR(10),\"\")","v":""},null,{"$f":"IFERROR(INDEX(Aktivita,SMALL(IF(Cieľ=$H$2,ROW(Aktivita)-MIN(ROW(Aktivita))+1),ROWS($B$3:B34)))&CHAR(10),\"\")","v":""}]
[null,{"$f":"IFERROR(INDEX(Aktivita,SMALL(IF(Cieľ=$B$2,ROW(Aktivita)-MIN(ROW(Aktivita))+1),ROWS($B$3:B35)))&\" \"&CHAR(10)&(INDEX(Výsledok,SMALL(IF(Cieľ=$B$2,ROW(Výsledok)-MIN(ROW(Výsledok))+1),ROWS($B$3:B35))))&CHAR(10),\"\")","v":""},null,{"$f":"IFERROR(INDEX(Aktivita,SMALL(IF(Cieľ=$D$2,ROW(Aktivita)-MIN(ROW(Aktivita))+1),ROWS($B$3:B35)))&CHAR(10),\"\")","v":""},null,{"$f":"IFERROR(INDEX(Aktivita,SMALL(IF(Cieľ=$F$2,ROW(Aktivita)-MIN(ROW(Aktivita))+1),ROWS($B$3:B35)))&CHAR(10),\"\")","v":""},null,{"$f":"IFERROR(INDEX(Aktivita,SMALL(IF(Cieľ=$H$2,ROW(Aktivita)-MIN(ROW(Aktivita))+1),ROWS($B$3:B35)))&CHAR(10),\"\")","v":""}]
[null,{"$f":"IFERROR(INDEX(Aktivita,SMALL(IF(Cieľ=$B$2,ROW(Aktivita)-MIN(ROW(Aktivita))+1),ROWS($B$3:B36)))&\" \"&CHAR(10)&(INDEX(Výsledok,SMALL(IF(Cieľ=$B$2,ROW(Výsledok)-MIN(ROW(Výsledok))+1),ROWS($B$3:B36))))&CHAR(10),\"\")","v":""},null,{"$f":"IFERROR(INDEX(Aktivita,SMALL(IF(Cieľ=$D$2,ROW(Aktivita)-MIN(ROW(Aktivita))+1),ROWS($B$3:B36)))&CHAR(10),\"\")","v":""},null,{"$f":"IFERROR(INDEX(Aktivita,SMALL(IF(Cieľ=$F$2,ROW(Aktivita)-MIN(ROW(Aktivita))+1),ROWS($B$3:B36)))&CHAR(10),\"\")","v":""},null,{"$f":"IFERROR(INDEX(Aktivita,SMALL(IF(Cieľ=$H$2,ROW(Aktivita)-MIN(ROW(Aktivita))+1),ROWS($B$3:B36)))&CHAR(10),\"\")","v":""}]
[null,{"$f":"IFERROR(INDEX(Aktivita,SMALL(IF(Cieľ=$B$2,ROW(Aktivita)-MIN(ROW(Aktivita))+1),ROWS($B$3:B37)))&\" \"&CHAR(10)&(INDEX(Výsledok,SMALL(IF(Cieľ=$B$2,ROW(Výsledok)-MIN(ROW(Výsledok))+1),ROWS($B$3:B37))))&CHAR(10),\"\")","v":""},null,{"$f":"IFERROR(INDEX(Aktivita,SMALL(IF(Cieľ=$D$2,ROW(Aktivita)-MIN(ROW(Aktivita))+1),ROWS($B$3:B37)))&CHAR(10),\"\")","v":""},null,{"$f":"IFERROR(INDEX(Aktivita,SMALL(IF(Cieľ=$F$2,ROW(Aktivita)-MIN(ROW(Aktivita))+1),ROWS($B$3:B37)))&CHAR(10),\"\")","v":""},null,{"$f":"IFERROR(INDEX(Aktivita,SMALL(IF(Cieľ=$H$2,ROW(Aktivita)-MIN(ROW(Aktivita))+1),ROWS($B$3:B37)))&CHAR(10),\"\")","v":""}]
[null,{"$f":"IFERROR(INDEX(Aktivita,SMALL(IF(Cieľ=$B$2,ROW(Aktivita)-MIN(ROW(Aktivita))+1),ROWS($B$3:B38)))&\" \"&CHAR(10)&(INDEX(Výsledok,SMALL(IF(Cieľ=$B$2,ROW(Výsledok)-MIN(ROW(Výsledok))+1),ROWS($B$3:B38))))&CHAR(10),\"\")","v":""},null,{"$f":"IFERROR(INDEX(Aktivita,SMALL(IF(Cieľ=$D$2,ROW(Aktivita)-MIN(ROW(Aktivita))+1),ROWS($B$3:B38)))&CHAR(10),\"\")","v":""},null,{"$f":"IFERROR(INDEX(Aktivita,SMALL(IF(Cieľ=$F$2,ROW(Aktivita)-MIN(ROW(Aktivita))+1),ROWS($B$3:B38)))&CHAR(10),\"\")","v":""},null,{"$f":"IFERROR(INDEX(Aktivita,SMALL(IF(Cieľ=$H$2,ROW(Aktivita)-MIN(ROW(Aktivita))+1),ROWS($B$3:B38)))&CHAR(10),\"\")","v":""}]
[null,{"$f":"IFERROR(INDEX(Aktivita,SMALL(IF(Cieľ=$B$2,ROW(Aktivita)-MIN(ROW(Aktivita))+1),ROWS($B$3:B39)))&\" \"&CHAR(10)&(INDEX(Výsledok,SMALL(IF(Cieľ=$B$2,ROW(Výsledok)-MIN(ROW(Výsledok))+1),ROWS($B$3:B39))))&CHAR(10),\"\")","v":""},null,{"$f":"IFERROR(INDEX(Aktivita,SMALL(IF(Cieľ=$D$2,ROW(Aktivita)-MIN(ROW(Aktivita))+1),ROWS($B$3:B39)))&CHAR(10),\"\")","v":""},null,{"$f":"IFERROR(INDEX(Aktivita,SMALL(IF(Cieľ=$F$2,ROW(Aktivita)-MIN(ROW(Aktivita))+1),ROWS($B$3:B39)))&CHAR(10),\"\")","v":""},null,{"$f":"IFERROR(INDEX(Aktivita,SMALL(IF(Cieľ=$H$2,ROW(Aktivita)-MIN(ROW(Aktivita))+1),ROWS($B$3:B39)))&CHAR(10),\"\")","v":""}]
[null,{"$f":"IFERROR(INDEX(Aktivita,SMALL(IF(Cieľ=$B$2,ROW(Aktivita)-MIN(ROW(Aktivita))+1),ROWS($B$3:B40)))&\" \"&CHAR(10)&(INDEX(Výsledok,SMALL(IF(Cieľ=$B$2,ROW(Výsledok)-MIN(ROW(Výsledok))+1),ROWS($B$3:B40))))&CHAR(10),\"\")","v":""},null,{"$f":"IFERROR(INDEX(Aktivita,SMALL(IF(Cieľ=$D$2,ROW(Aktivita)-MIN(ROW(Aktivita))+1),ROWS($B$3:B40)))&CHAR(10),\"\")","v":""},null,{"$f":"IFERROR(INDEX(Aktivita,SMALL(IF(Cieľ=$F$2,ROW(Aktivita)-MIN(ROW(Aktivita))+1),ROWS($B$3:B40)))&CHAR(10),\"\")","v":""},null,{"$f":"IFERROR(INDEX(Aktivita,SMALL(IF(Cieľ=$H$2,ROW(Aktivita)-MIN(ROW(Aktivita))+1),ROWS($B$3:B40)))&CHAR(10),\"\")","v":""}]
[null,{"$f":"IFERROR(INDEX(Aktivita,SMALL(IF(Cieľ=$B$2,ROW(Aktivita)-MIN(ROW(Aktivita))+1),ROWS($B$3:B41)))&\" \"&CHAR(10)&(INDEX(Výsledok,SMALL(IF(Cieľ=$B$2,ROW(Výsledok)-MIN(ROW(Výsledok))+1),ROWS($B$3:B41))))&CHAR(10),\"\")","v":""},null,{"$f":"IFERROR(INDEX(Aktivita,SMALL(IF(Cieľ=$D$2,ROW(Aktivita)-MIN(ROW(Aktivita))+1),ROWS($B$3:B41)))&CHAR(10),\"\")","v":""},null,{"$f":"IFERROR(INDEX(Aktivita,SMALL(IF(Cieľ=$F$2,ROW(Aktivita)-MIN(ROW(Aktivita))+1),ROWS($B$3:B41)))&CHAR(10),\"\")","v":""},null,{"$f":"IFERROR(INDEX(Aktivita,SMALL(IF(Cieľ=$H$2,ROW(Aktivita)-MIN(ROW(Aktivita))+1),ROWS($B$3:B41)))&CHAR(10),\"\")","v":""}]
[null,{"$f":"IFERROR(INDEX(Aktivita,SMALL(IF(Cieľ=$B$2,ROW(Aktivita)-MIN(ROW(Aktivita))+1),ROWS($B$3:B42)))&\" \"&CHAR(10)&(INDEX(Výsledok,SMALL(IF(Cieľ=$B$2,ROW(Výsledok)-MIN(ROW(Výsledok))+1),ROWS($B$3:B42))))&CHAR(10),\"\")","v":""},null,{"$f":"IFERROR(INDEX(Aktivita,SMALL(IF(Cieľ=$D$2,ROW(Aktivita)-MIN(ROW(Aktivita))+1),ROWS($B$3:B42)))&CHAR(10),\"\")","v":""},null,{"$f":"IFERROR(INDEX(Aktivita,SMALL(IF(Cieľ=$F$2,ROW(Aktivita)-MIN(ROW(Aktivita))+1),ROWS($B$3:B42)))&CHAR(10),\"\")","v":""},null,{"$f":"IFERROR(INDEX(Aktivita,SMALL(IF(Cieľ=$H$2,ROW(Aktivita)-MIN(ROW(Aktivita))+1),ROWS($B$3:B42)))&CHAR(10),\"\")","v":""}]
[null,{"$f":"IFERROR(INDEX(Aktivita,SMALL(IF(Cieľ=$B$2,ROW(Aktivita)-MIN(ROW(Aktivita))+1),ROWS($B$3:B43)))&\" \"&CHAR(10)&(INDEX(Výsledok,SMALL(IF(Cieľ=$B$2,ROW(Výsledok)-MIN(ROW(Výsledok))+1),ROWS($B$3:B43))))&CHAR(10),\"\")","v":""},null,{"$f":"IFERROR(INDEX(Aktivita,SMALL(IF(Cieľ=$D$2,ROW(Aktivita)-MIN(ROW(Aktivita))+1),ROWS($B$3:B43)))&CHAR(10),\"\")","v":""},null,{"$f":"IFERROR(INDEX(Aktivita,SMALL(IF(Cieľ=$F$2,ROW(Aktivita)-MIN(ROW(Aktivita))+1),ROWS($B$3:B43)))&CHAR(10),\"\")","v":""},null,{"$f":"IFERROR(INDEX(Aktivita,SMALL(IF(Cieľ=$H$2,ROW(Aktivita)-MIN(ROW(Aktivita))+1),ROWS($B$3:B43)))&CHAR(10),\"\")","v":""}]
[null,{"$f":"IFERROR(INDEX(Aktivita,SMALL(IF(Cieľ=$B$2,ROW(Aktivita)-MIN(ROW(Aktivita))+1),ROWS($B$3:B44)))&\" \"&CHAR(10)&(INDEX(Výsledok,SMALL(IF(Cieľ=$B$2,ROW(Výsledok)-MIN(ROW(Výsledok))+1),ROWS($B$3:B44))))&CHAR(10),\"\")","v":""},null,{"$f":"IFERROR(INDEX(Aktivita,SMALL(IF(Cieľ=$D$2,ROW(Aktivita)-MIN(ROW(Aktivita))+1),ROWS($B$3:B44)))&CHAR(10),\"\")","v":""},null,{"$f":"IFERROR(INDEX(Aktivita,SMALL(IF(Cieľ=$F$2,ROW(Aktivita)-MIN(ROW(Aktivita))+1),ROWS($B$3:B44)))&CHAR(10),\"\")","v":""},null,{"$f":"IFERROR(INDEX(Aktivita,SMALL(IF(Cieľ=$H$2,ROW(Aktivita)-MIN(ROW(Aktivita))+1),ROWS($B$3:B44)))&CHAR(10),\"\")","v":""}]
[null,{"$f":"IFERROR(INDEX(Aktivita,SMALL(IF(Cieľ=$B$2,ROW(Aktivita)-MIN(ROW(Aktivita))+1),ROWS($B$3:B45)))&\" \"&CHAR(10)&(INDEX(Výsledok,SMALL(IF(Cieľ=$B$2,ROW(Výsledok)-MIN(ROW(Výsledok))+1),ROWS($B$3:B45))))&CHAR(10),\"\")","v":""},null,{"$f":"IFERROR(INDEX(Aktivita,SMALL(IF(Cieľ=$D$2,ROW(Aktivita)-MIN(ROW(Aktivita))+1),ROWS($B$3:B45)))&CHAR(10),\"\")","v":""},null,{"$f":"IFERROR(INDEX(Aktivita,SMALL(IF(Cieľ=$F$2,ROW(Aktivita)-MIN(ROW(Aktivita))+1),ROWS($B$3:B45)))&CHAR(10),\"\")","v":""},null,{"$f":"IFERROR(INDEX(Aktivita,SMALL(IF(Cieľ=$H$2,ROW(Aktivita)-MIN(ROW(Aktivita))+1),ROWS($B$3:B45)))&CHAR(10),\"\")","v":""}]
[null,{"$f":"IFERROR(INDEX(Aktivita,SMALL(IF(Cieľ=$B$2,ROW(Aktivita)-MIN(ROW(Aktivita))+1),ROWS($B$3:B46)))&\" \"&CHAR(10)&(INDEX(Výsledok,SMALL(IF(Cieľ=$B$2,ROW(Výsledok)-MIN(ROW(Výsledok))+1),ROWS($B$3:B46))))&CHAR(10),\"\")","v":""},null,{"$f":"IFERROR(INDEX(Aktivita,SMALL(IF(Cieľ=$D$2,ROW(Aktivita)-MIN(ROW(Aktivita))+1),ROWS($B$3:B46)))&CHAR(10),\"\")","v":""},null,{"$f":"IFERROR(INDEX(Aktivita,SMALL(IF(Cieľ=$F$2,ROW(Aktivita)-MIN(ROW(Aktivita))+1),ROWS($B$3:B46)))&CHAR(10),\"\")","v":""},null,{"$f":"IFERROR(INDEX(Aktivita,SMALL(IF(Cieľ=$H$2,ROW(Aktivita)-MIN(ROW(Aktivita))+1),ROWS($B$3:B46)))&CHAR(10),\"\")","v":""}]
[null,{"$f":"IFERROR(INDEX(Aktivita,SMALL(IF(Cieľ=$B$2,ROW(Aktivita)-MIN(ROW(Aktivita))+1),ROWS($B$3:B47)))&\" \"&CHAR(10)&(INDEX(Výsledok,SMALL(IF(Cieľ=$B$2,ROW(Výsledok)-MIN(ROW(Výsledok))+1),ROWS($B$3:B47))))&CHAR(10),\"\")","v":""},null,{"$f":"IFERROR(INDEX(Aktivita,SMALL(IF(Cieľ=$D$2,ROW(Aktivita)-MIN(ROW(Aktivita))+1),ROWS($B$3:B47)))&CHAR(10),\"\")","v":""},null,{"$f":"IFERROR(INDEX(Aktivita,SMALL(IF(Cieľ=$F$2,ROW(Aktivita)-MIN(ROW(Aktivita))+1),ROWS($B$3:B47)))&CHAR(10),\"\")","v":""},null,{"$f":"IFERROR(INDEX(Aktivita,SMALL(IF(Cieľ=$H$2,ROW(Aktivita)-MIN(ROW(Aktivita))+1),ROWS($B$3:B47)))&CHAR(10),\"\")","v":""}]
[null,{"$f":"IFERROR(INDEX(Aktivita,SMALL(IF(Cieľ=$B$2,ROW(Aktivita)-MIN(ROW(Aktivita))+1),ROWS($B$3:B48)))&\" \"&CHAR(10)&(INDEX(Výsledok,SMALL(IF(Cieľ=$B$2,ROW(Výsledok)-MIN(ROW(Výsledok))+1),ROWS($B$3:B48))))&CHAR(10),\"\")","v":""},null,{"$f":"IFERROR(INDEX(Aktivita,SMALL(IF(Cieľ=$D$2,ROW(Aktivita)-MIN(ROW(Aktivita))+1),ROWS($B$3:B48)))&CHAR(10),\"\")","v":""},null,{"$f":"IFERROR(INDEX(Aktivita,SMALL(IF(Cieľ=$F$2,ROW(Aktivita)-MIN(ROW(Aktivita))+1),ROWS($B$3:B48)))&CHAR(10),\"\")","v":""},null,{"$f":"IFERROR(INDEX(Aktivita,SMALL(IF(Cieľ=$H$2,ROW(Aktivita)-MIN(ROW(Aktivita))+1),ROWS($B$3:B48)))&CHAR(10),\"\")","v":""}]
[null,{"$f":"IFERROR(INDEX(Aktivita,SMALL(IF(Cieľ=$B$2,ROW(Aktivita)-MIN(ROW(Aktivita))+1),ROWS($B$3:B49)))&\" \"&CHAR(10)&(INDEX(Výsledok,SMALL(IF(Cieľ=$B$2,ROW(Výsledok)-MIN(ROW(Výsledok))+1),ROWS($B$3:B49))))&CHAR(10),\"\")","v":""},null,{"$f":"IFERROR(INDEX(Aktivita,SMALL(IF(Cieľ=$D$2,ROW(Aktivita)-MIN(ROW(Aktivita))+1),ROWS($B$3:B49)))&CHAR(10),\"\")","v":""},null,{"$f":"IFERROR(INDEX(Aktivita,SMALL(IF(Cieľ=$F$2,ROW(Aktivita)-MIN(ROW(Aktivita))+1),ROWS($B$3:B49)))&CHAR(10),\"\")","v":""},null,{"$f":"IFERROR(INDEX(Aktivita,SMALL(IF(Cieľ=$H$2,ROW(Aktivita)-MIN(ROW(Aktivita))+1),ROWS($B$3:B49)))&CHAR(10),\"\")","v":""}]
[null,{"$f":"IFERROR(INDEX(Aktivita,SMALL(IF(Cieľ=$B$2,ROW(Aktivita)-MIN(ROW(Aktivita))+1),ROWS($B$3:B50)))&\" \"&CHAR(10)&(INDEX(Výsledok,SMALL(IF(Cieľ=$B$2,ROW(Výsledok)-MIN(ROW(Výsledok))+1),ROWS($B$3:B50))))&CHAR(10),\"\")","v":""},null,{"$f":"IFERROR(INDEX(Aktivita,SMALL(IF(Cieľ=$D$2,ROW(Aktivita)-MIN(ROW(Aktivita))+1),ROWS($B$3:B50)))&CHAR(10),\"\")","v":""},null,{"$f":"IFERROR(INDEX(Aktivita,SMALL(IF(Cieľ=$F$2,ROW(Aktivita)-MIN(ROW(Aktivita))+1),ROWS($B$3:B50)))&CHAR(10),\"\")","v":""},null,{"$f":"IFERROR(INDEX(Aktivita,SMALL(IF(Cieľ=$H$2,ROW(Aktivita)-MIN(ROW(Aktivita))+1),ROWS($B$3:B50)))&CHAR(10),\"\")","v":""}]
[null,{"$f":"IFERROR(INDEX(Aktivita,SMALL(IF(Cieľ=$B$2,ROW(Aktivita)-MIN(ROW(Aktivita))+1),ROWS($B$3:B51)))&\" \"&CHAR(10)&(INDEX(Výsledok,SMALL(IF(Cieľ=$B$2,ROW(Výsledok)-MIN(ROW(Výsledok))+1),ROWS($B$3:B51))))&CHAR(10),\"\")","v":""},null,{"$f":"IFERROR(INDEX(Aktivita,SMALL(IF(Cieľ=$D$2,ROW(Aktivita)-MIN(ROW(Aktivita))+1),ROWS($B$3:B51)))&CHAR(10),\"\")","v":""},null,{"$f":"IFERROR(INDEX(Aktivita,SMALL(IF(Cieľ=$F$2,ROW(Aktivita)-MIN(ROW(Aktivita))+1),ROWS($B$3:B51)))&CHAR(10),\"\")","v":""},null,{"$f":"IFERROR(INDEX(Aktivita,SMALL(IF(Cieľ=$H$2,ROW(Aktivita)-MIN(ROW(Aktivita))+1),ROWS($B$3:B51)))&CHAR(10),\"\")","v":""}]
[null,{"$f":"IFERROR(INDEX(Aktivita,SMALL(IF(Cieľ=$B$2,ROW(Aktivita)-MIN(ROW(Aktivita))+1),ROWS($B$3:B52)))&\" \"&CHAR(10)&(INDEX(Výsledok,SMALL(IF(Cieľ=$B$2,ROW(Výsledok)-MIN(ROW(Výsledok))+1),ROWS($B$3:B52))))&CHAR(10),\"\")","v":""},null,{"$f":"IFERROR(INDEX(Aktivita,SMALL(IF(Cieľ=$D$2,ROW(Aktivita)-MIN(ROW(Aktivita))+1),ROWS($B$3:B52)))&CHAR(10),\"\")","v":""},null,{"$f":"IFERROR(INDEX(Aktivita,SMALL(IF(Cieľ=$F$2,ROW(Aktivita)-MIN(ROW(Aktivita))+1),ROWS($B$3:B52)))&CHAR(10),\"\")","v":""},null,{"$f":"IFERROR(INDEX(Aktivita,SMALL(IF(Cieľ=$H$2,ROW(Aktivita)-MIN(ROW(Aktivita))+1),ROWS($B$3:B52)))&CHAR(10),\"\")","v":""}]
[null,{"$f":"IFERROR(INDEX(Aktivita,SMALL(IF(Cieľ=$B$2,ROW(Aktivita)-MIN(ROW(Aktivita))+1),ROWS($B$3:B53)))&\" \"&CHAR(10)&(INDEX(Výsledok,SMALL(IF(Cieľ=$B$2,ROW(Výsledok)-MIN(ROW(Výsledok))+1),ROWS($B$3:B53))))&CHAR(10),\"\")","v":""},null,{"$f":"IFERROR(INDEX(Aktivita,SMALL(IF(Cieľ=$D$2,ROW(Aktivita)-MIN(ROW(Aktivita))+1),ROWS($B$3:B53)))&CHAR(10),\"\")","v":""},null,{"$f":"IFERROR(INDEX(Aktivita,SMALL(IF(Cieľ=$F$2,ROW(Aktivita)-MIN(ROW(Aktivita))+1),ROWS($B$3:B53)))&CHAR(10),\"\")","v":""},null,{"$f":"IFERROR(INDEX(Aktivita,SMALL(IF(Cieľ=$H$2,ROW(Aktivita)-MIN(ROW(Aktivita))+1),ROWS($B$3:B53)))&CHAR(10),\"\")","v":""}]
[null,{"$f":"IFERROR(INDEX(Aktivita,SMALL(IF(Cieľ=$B$2,ROW(Aktivita)-MIN(ROW(Aktivita))+1),ROWS($B$3:B54)))&\" \"&CHAR(10)&(INDEX(Výsledok,SMALL(IF(Cieľ=$B$2,ROW(Výsledok)-MIN(ROW(Výsledok))+1),ROWS($B$3:B54))))&CHAR(10),\"\")","v":""},null,{"$f":"IFERROR(INDEX(Aktivita,SMALL(IF(Cieľ=$D$2,ROW(Aktivita)-MIN(ROW(Aktivita))+1),ROWS($B$3:B54)))&CHAR(10),\"\")","v":""},null,{"$f":"IFERROR(INDEX(Aktivita,SMALL(IF(Cieľ=$F$2,ROW(Aktivita)-MIN(ROW(Aktivita))+1),ROWS($B$3:B54)))&CHAR(10),\"\")","v":""},null,{"$f":"IFERROR(INDEX(Aktivita,SMALL(IF(Cieľ=$H$2,ROW(Aktivita)-MIN(ROW(Aktivita))+1),ROWS($B$3:B54)))&CHAR(10),\"\")","v":""}]
[null,{"$f":"IFERROR(INDEX(Aktivita,SMALL(IF(Cieľ=$B$2,ROW(Aktivita)-MIN(ROW(Aktivita))+1),ROWS($B$3:B55)))&\" \"&CHAR(10)&(INDEX(Výsledok,SMALL(IF(Cieľ=$B$2,ROW(Výsledok)-MIN(ROW(Výsledok))+1),ROWS($B$3:B55))))&CHAR(10),\"\")","v":""},null,{"$f":"IFERROR(INDEX(Aktivita,SMALL(IF(Cieľ=$D$2,ROW(Aktivita)-MIN(ROW(Aktivita))+1),ROWS($B$3:B55)))&CHAR(10),\"\")","v":""},null,{"$f":"IFERROR(INDEX(Aktivita,SMALL(IF(Cieľ=$F$2,ROW(Aktivita)-MIN(ROW(Aktivita))+1),ROWS($B$3:B55)))&CHAR(10),\"\")","v":""},null,{"$f":"IFERROR(INDEX(Aktivita,SMALL(IF(Cieľ=$H$2,ROW(Aktivita)-MIN(ROW(Aktivita))+1),ROWS($B$3:B55)))&CHAR(10),\"\")","v":""}]
[null,{"$f":"IFERROR(INDEX(Aktivita,SMALL(IF(Cieľ=$B$2,ROW(Aktivita)-MIN(ROW(Aktivita))+1),ROWS($B$3:B56)))&\" \"&CHAR(10)&(INDEX(Výsledok,SMALL(IF(Cieľ=$B$2,ROW(Výsledok)-MIN(ROW(Výsledok))+1),ROWS($B$3:B56))))&CHAR(10),\"\")","v":""},null,{"$f":"IFERROR(INDEX(Aktivita,SMALL(IF(Cieľ=$D$2,ROW(Aktivita)-MIN(ROW(Aktivita))+1),ROWS($B$3:B56)))&CHAR(10),\"\")","v":""},null,{"$f":"IFERROR(INDEX(Aktivita,SMALL(IF(Cieľ=$F$2,ROW(Aktivita)-MIN(ROW(Aktivita))+1),ROWS($B$3:B56)))&CHAR(10),\"\")","v":""},null,{"$f":"IFERROR(INDEX(Aktivita,SMALL(IF(Cieľ=$H$2,ROW(Aktivita)-MIN(ROW(Aktivita))+1),ROWS($B$3:B56)))&CHAR(10),\"\")","v":""}]
[null,{"$f":"IFERROR(INDEX(Aktivita,SMALL(IF(Cieľ=$B$2,ROW(Aktivita)-MIN(ROW(Aktivita))+1),ROWS($B$3:B57)))&\" \"&CHAR(10)&(INDEX(Výsledok,SMALL(IF(Cieľ=$B$2,ROW(Výsledok)-MIN(ROW(Výsledok))+1),ROWS($B$3:B57))))&CHAR(10),\"\")","v":""},null,{"$f":"IFERROR(INDEX(Aktivita,SMALL(IF(Cieľ=$D$2,ROW(Aktivita)-MIN(ROW(Aktivita))+1),ROWS($B$3:B57)))&CHAR(10),\"\")","v":""},null,{"$f":"IFERROR(INDEX(Aktivita,SMALL(IF(Cieľ=$F$2,ROW(Aktivita)-MIN(ROW(Aktivita))+1),ROWS($B$3:B57)))&CHAR(10),\"\")","v":""},null,{"$f":"IFERROR(INDEX(Aktivita,SMALL(IF(Cieľ=$H$2,ROW(Aktivita)-MIN(ROW(Aktivita))+1),ROWS($B$3:B57)))&CHAR(10),\"\")","v":""}]
[null,{"$f":"IFERROR(INDEX(Aktivita,SMALL(IF(Cieľ=$B$2,ROW(Aktivita)-MIN(ROW(Aktivita))+1),ROWS($B$3:B58)))&\" \"&CHAR(10)&(INDEX(Výsledok,SMALL(IF(Cieľ=$B$2,ROW(Výsledok)-MIN(ROW(Výsledok))+1),ROWS($B$3:B58))))&CHAR(10),\"\")","v":""},null,{"$f":"IFERROR(INDEX(Aktivita,SMALL(IF(Cieľ=$D$2,ROW(Aktivita)-MIN(ROW(Aktivita))+1),ROWS($B$3:B58)))&CHAR(10),\"\")","v":""},null,{"$f":"IFERROR(INDEX(Aktivita,SMALL(IF(Cieľ=$F$2,ROW(Aktivita)-MIN(ROW(Aktivita))+1),ROWS($B$3:B58)))&CHAR(10),\"\")","v":""},null,{"$f":"IFERROR(INDEX(Aktivita,SMALL(IF(Cieľ=$H$2,ROW(Aktivita)-MIN(ROW(Aktivita))+1),ROWS($B$3:B58)))&CHAR(10),\"\")","v":""}]
[null,{"$f":"IFERROR(INDEX(Aktivita,SMALL(IF(Cieľ=$B$2,ROW(Aktivita)-MIN(ROW(Aktivita))+1),ROWS($B$3:B59)))&\" \"&CHAR(10)&(INDEX(Výsledok,SMALL(IF(Cieľ=$B$2,ROW(Výsledok)-MIN(ROW(Výsledok))+1),ROWS($B$3:B59))))&CHAR(10),\"\")","v":""},null,{"$f":"IFERROR(INDEX(Aktivita,SMALL(IF(Cieľ=$D$2,ROW(Aktivita)-MIN(ROW(Aktivita))+1),ROWS($B$3:B59)))&CHAR(10),\"\")","v":""},null,{"$f":"IFERROR(INDEX(Aktivita,SMALL(IF(Cieľ=$F$2,ROW(Aktivita)-MIN(ROW(Aktivita))+1),ROWS($B$3:B59)))&CHAR(10),\"\")","v":""},null,{"$f":"IFERROR(INDEX(Aktivita,SMALL(IF(Cieľ=$H$2,ROW(Aktivita)-MIN(ROW(Aktivita))+1),ROWS($B$3:B59)))&CHAR(10),\"\")","v":""}]
[null,{"$f":"IFERROR(INDEX(Aktivita,SMALL(IF(Cieľ=$B$2,ROW(Aktivita)-MIN(ROW(Aktivita))+1),ROWS($B$3:B60)))&\" \"&CHAR(10)&(INDEX(Výsledok,SMALL(IF(Cieľ=$B$2,ROW(Výsledok)-MIN(ROW(Výsledok))+1),ROWS($B$3:B60))))&CHAR(10),\"\")","v":""},null,{"$f":"IFERROR(INDEX(Aktivita,SMALL(IF(Cieľ=$D$2,ROW(Aktivita)-MIN(ROW(Aktivita))+1),ROWS($B$3:B60)))&CHAR(10),\"\")","v":""},null,{"$f":"IFERROR(INDEX(Aktivita,SMALL(IF(Cieľ=$F$2,ROW(Aktivita)-MIN(ROW(Aktivita))+1),ROWS($B$3:B60)))&CHAR(10),\"\")","v":""},null,{"$f":"IFERROR(INDEX(Aktivita,SMALL(IF(Cieľ=$H$2,ROW(Aktivita)-MIN(ROW(Aktivita))+1),ROWS($B$3:B60)))&CHAR(10),\"\")","v":""}]
[null,{"$f":"IFERROR(INDEX(Aktivita,SMALL(IF(Cieľ=$B$2,ROW(Aktivita)-MIN(ROW(Aktivita))+1),ROWS($B$3:B61)))&\" \"&CHAR(10)&(INDEX(Výsledok,SMALL(IF(Cieľ=$B$2,ROW(Výsledok)-MIN(ROW(Výsledok))+1),ROWS($B$3:B61))))&CHAR(10),\"\")","v":""},null,{"$f":"IFERROR(INDEX(Aktivita,SMALL(IF(Cieľ=$D$2,ROW(Aktivita)-MIN(ROW(Aktivita))+1),ROWS($B$3:B61)))&CHAR(10),\"\")","v":""},null,{"$f":"IFERROR(INDEX(Aktivita,SMALL(IF(Cieľ=$F$2,ROW(Aktivita)-MIN(ROW(Aktivita))+1),ROWS($B$3:B61)))&CHAR(10),\"\")","v":""},null,{"$f":"IFERROR(INDEX(Aktivita,SMALL(IF(Cieľ=$H$2,ROW(Aktivita)-MIN(ROW(Aktivita))+1),ROWS($B$3:B61)))&CHAR(10),\"\")","v":""}]
[null,{"$f":"IFERROR(INDEX(Aktivita,SMALL(IF(Cieľ=$B$2,ROW(Aktivita)-MIN(ROW(Aktivita))+1),ROWS($B$3:B62)))&\" \"&CHAR(10)&(INDEX(Výsledok,SMALL(IF(Cieľ=$B$2,ROW(Výsledok)-MIN(ROW(Výsledok))+1),ROWS($B$3:B62))))&CHAR(10),\"\")","v":""},null,{"$f":"IFERROR(INDEX(Aktivita,SMALL(IF(Cieľ=$D$2,ROW(Aktivita)-MIN(ROW(Aktivita))+1),ROWS($B$3:B62)))&CHAR(10),\"\")","v":""},null,{"$f":"IFERROR(INDEX(Aktivita,SMALL(IF(Cieľ=$F$2,ROW(Aktivita)-MIN(ROW(Aktivita))+1),ROWS($B$3:B62)))&CHAR(10),\"\")","v":""},null,{"$f":"IFERROR(INDEX(Aktivita,SMALL(IF(Cieľ=$H$2,ROW(Aktivita)-MIN(ROW(Aktivita))+1),ROWS($B$3:B62)))&CHAR(10),\"\")","v":""}]
[null,{"$f":"IFERROR(INDEX(Aktivita,SMALL(IF(Cieľ=$B$2,ROW(Aktivita)-MIN(ROW(Aktivita))+1),ROWS($B$3:B63)))&\" \"&CHAR(10)&(INDEX(Výsledok,SMALL(IF(Cieľ=$B$2,ROW(Výsledok)-MIN(ROW(Výsledok))+1),ROWS($B$3:B63))))&CHAR(10),\"\")","v":""},null,{"$f":"IFERROR(INDEX(Aktivita,SMALL(IF(Cieľ=$D$2,ROW(Aktivita)-MIN(ROW(Aktivita))+1),ROWS($B$3:B63)))&CHAR(10),\"\")","v":""},null,{"$f":"IFERROR(INDEX(Aktivita,SMALL(IF(Cieľ=$F$2,ROW(Aktivita)-MIN(ROW(Aktivita))+1),ROWS($B$3:B63)))&CHAR(10),\"\")","v":""},null,{"$f":"IFERROR(INDEX(Aktivita,SMALL(IF(Cieľ=$H$2,ROW(Aktivita)-MIN(ROW(Aktivita))+1),ROWS($B$3:B63)))&CHAR(10),\"\")","v":""}]
[null,{"$f":"IFERROR(INDEX(Aktivita,SMALL(IF(Cieľ=$B$2,ROW(Aktivita)-MIN(ROW(Aktivita))+1),ROWS($B$3:B64)))&\" \"&CHAR(10)&(INDEX(Výsledok,SMALL(IF(Cieľ=$B$2,ROW(Výsledok)-MIN(ROW(Výsledok))+1),ROWS($B$3:B64))))&CHAR(10),\"\")","v":""},null,{"$f":"IFERROR(INDEX(Aktivita,SMALL(IF(Cieľ=$D$2,ROW(Aktivita)-MIN(ROW(Aktivita))+1),ROWS($B$3:B64)))&CHAR(10),\"\")","v":""},null,{"$f":"IFERROR(INDEX(Aktivita,SMALL(IF(Cieľ=$F$2,ROW(Aktivita)-MIN(ROW(Aktivita))+1),ROWS($B$3:B64)))&CHAR(10),\"\")","v":""},null,{"$f":"IFERROR(INDEX(Aktivita,SMALL(IF(Cieľ=$H$2,ROW(Aktivita)-MIN(ROW(Aktivita))+1),ROWS($B$3:B64)))&CHAR(10),\"\")","v":""}]
[null,{"$f":"IFERROR(INDEX(Aktivita,SMALL(IF(Cieľ=$B$2,ROW(Aktivita)-MIN(ROW(Aktivita))+1),ROWS($B$3:B65)))&\" \"&CHAR(10)&(INDEX(Výsledok,SMALL(IF(Cieľ=$B$2,ROW(Výsledok)-MIN(ROW(Výsledok))+1),ROWS($B$3:B65))))&CHAR(10),\"\")","v":""},null,{"$f":"IFERROR(INDEX(Aktivita,SMALL(IF(Cieľ=$D$2,ROW(Aktivita)-MIN(ROW(Aktivita))+1),ROWS($B$3:B65)))&CHAR(10),\"\")","v":""},null,{"$f":"IFERROR(INDEX(Aktivita,SMALL(IF(Cieľ=$F$2,ROW(Aktivita)-MIN(ROW(Aktivita))+1),ROWS($B$3:B65)))&CHAR(10),\"\")","v":""},null,{"$f":"IFERROR(INDEX(Aktivita,SMALL(IF(Cieľ=$H$2,ROW(Aktivita)-MIN(ROW(Aktivita))+1),ROWS($B$3:B65)))&CHAR(10),\"\")","v":""}]
[null,{"$f":"IFERROR(INDEX(Aktivita,SMALL(IF(Cieľ=$B$2,ROW(Aktivita)-MIN(ROW(Aktivita))+1),ROWS($B$3:B66)))&\" \"&CHAR(10)&(INDEX(Výsledok,SMALL(IF(Cieľ=$B$2,ROW(Výsledok)-MIN(ROW(Výsledok))+1),ROWS($B$3:B66))))&CHAR(10),\"\")","v":""},null,{"$f":"IFERROR(INDEX(Aktivita,SMALL(IF(Cieľ=$D$2,ROW(Aktivita)-MIN(ROW(Aktivita))+1),ROWS($B$3:B66)))&CHAR(10),\"\")","v":""},null,{"$f":"IFERROR(INDEX(Aktivita,SMALL(IF(Cieľ=$F$2,ROW(Aktivita)-MIN(ROW(Aktivita))+1),ROWS($B$3:B66)))&CHAR(10),\"\")","v":""},null,{"$f":"IFERROR(INDEX(Aktivita,SMALL(IF(Cieľ=$H$2,ROW(Aktivita)-MIN(ROW(Aktivita))+1),ROWS($B$3:B66)))&CHAR(10),\"\")","v":""}]
[null,{"$f":"IFERROR(INDEX(Aktivita,SMALL(IF(Cieľ=$B$2,ROW(Aktivita)-MIN(ROW(Aktivita))+1),ROWS($B$3:B67)))&\" \"&CHAR(10)&(INDEX(Výsledok,SMALL(IF(Cieľ=$B$2,ROW(Výsledok)-MIN(ROW(Výsledok))+1),ROWS($B$3:B67))))&CHAR(10),\"\")","v":""},null,{"$f":"IFERROR(INDEX(Aktivita,SMALL(IF(Cieľ=$D$2,ROW(Aktivita)-MIN(ROW(Aktivita))+1),ROWS($B$3:B67)))&CHAR(10),\"\")","v":""},null,{"$f":"IFERROR(INDEX(Aktivita,SMALL(IF(Cieľ=$F$2,ROW(Aktivita)-MIN(ROW(Aktivita))+1),ROWS($B$3:B67)))&CHAR(10),\"\")","v":""},null,{"$f":"IFERROR(INDEX(Aktivita,SMALL(IF(Cieľ=$H$2,ROW(Aktivita)-MIN(ROW(Aktivita))+1),ROWS($B$3:B67)))&CHAR(10),\"\")","v":""}]
[null,{"$f":"IFERROR(INDEX(Aktivita,SMALL(IF(Cieľ=$B$2,ROW(Aktivita)-MIN(ROW(Aktivita))+1),ROWS($B$3:B68)))&\" \"&CHAR(10)&(INDEX(Výsledok,SMALL(IF(Cieľ=$B$2,ROW(Výsledok)-MIN(ROW(Výsledok))+1),ROWS($B$3:B68))))&CHAR(10),\"\")","v":""},null,{"$f":"IFERROR(INDEX(Aktivita,SMALL(IF(Cieľ=$D$2,ROW(Aktivita)-MIN(ROW(Aktivita))+1),ROWS($B$3:B68)))&CHAR(10),\"\")","v":""},null,{"$f":"IFERROR(INDEX(Aktivita,SMALL(IF(Cieľ=$F$2,ROW(Aktivita)-MIN(ROW(Aktivita))+1),ROWS($B$3:B68)))&CHAR(10),\"\")","v":""},null,{"$f":"IFERROR(INDEX(Aktivita,SMALL(IF(Cieľ=$H$2,ROW(Aktivita)-MIN(ROW(Aktivita))+1),ROWS($B$3:B68)))&CHAR(10),\"\")","v":""}]
[null,{"$f":"IFERROR(INDEX(Aktivita,SMALL(IF(Cieľ=$B$2,ROW(Aktivita)-MIN(ROW(Aktivita))+1),ROWS($B$3:B69)))&\" \"&CHAR(10)&(INDEX(Výsledok,SMALL(IF(Cieľ=$B$2,ROW(Výsledok)-MIN(ROW(Výsledok))+1),ROWS($B$3:B69))))&CHAR(10),\"\")","v":""},null,{"$f":"IFERROR(INDEX(Aktivita,SMALL(IF(Cieľ=$D$2,ROW(Aktivita)-MIN(ROW(Aktivita))+1),ROWS($B$3:B69)))&CHAR(10),\"\")","v":""},null,{"$f":"IFERROR(INDEX(Aktivita,SMALL(IF(Cieľ=$F$2,ROW(Aktivita)-MIN(ROW(Aktivita))+1),ROWS($B$3:B69)))&CHAR(10),\"\")","v":""},null,{"$f":"IFERROR(INDEX(Aktivita,SMALL(IF(Cieľ=$H$2,ROW(Aktivita)-MIN(ROW(Aktivita))+1),ROWS($B$3:B69)))&CHAR(10),\"\")","v":""}]
[null,{"$f":"IFERROR(INDEX(Aktivita,SMALL(IF(Cieľ=$B$2,ROW(Aktivita)-MIN(ROW(Aktivita))+1),ROWS($B$3:B70)))&\" \"&CHAR(10)&(INDEX(Výsledok,SMALL(IF(Cieľ=$B$2,ROW(Výsledok)-MIN(ROW(Výsledok))+1),ROWS($B$3:B70))))&CHAR(10),\"\")","v":""},null,{"$f":"IFERROR(INDEX(Aktivita,SMALL(IF(Cieľ=$D$2,ROW(Aktivita)-MIN(ROW(Aktivita))+1),ROWS($B$3:B70)))&CHAR(10),\"\")","v":""},null,{"$f":"IFERROR(INDEX(Aktivita,SMALL(IF(Cieľ=$F$2,ROW(Aktivita)-MIN(ROW(Aktivita))+1),ROWS($B$3:B70)))&CHAR(10),\"\")","v":""},null,{"$f":"IFERROR(INDEX(Aktivita,SMALL(IF(Cieľ=$H$2,ROW(Aktivita)-MIN(ROW(Aktivita))+1),ROWS($B$3:B70)))&CHAR(10),\"\")","v":""}]
[null,{"$f":"IFERROR(INDEX(Aktivita,SMALL(IF(Cieľ=$B$2,ROW(Aktivita)-MIN(ROW(Aktivita))+1),ROWS($B$3:B71)))&\" \"&CHAR(10)&(INDEX(Výsledok,SMALL(IF(Cieľ=$B$2,ROW(Výsledok)-MIN(ROW(Výsledok))+1),ROWS($B$3:B71))))&CHAR(10),\"\")","v":""},null,{"$f":"IFERROR(INDEX(Aktivita,SMALL(IF(Cieľ=$D$2,ROW(Aktivita)-MIN(ROW(Aktivita))+1),ROWS($B$3:B71)))&CHAR(10),\"\")","v":""},null,{"$f":"IFERROR(INDEX(Aktivita,SMALL(IF(Cieľ=$F$2,ROW(Aktivita)-MIN(ROW(Aktivita))+1),ROWS($B$3:B71)))&CHAR(10),\"\")","v":""},null,{"$f":"IFERROR(INDEX(Aktivita,SMALL(IF(Cieľ=$H$2,ROW(Aktivita)-MIN(ROW(Aktivita))+1),ROWS($B$3:B71)))&CHAR(10),\"\")","v":""}]
[null,{"$f":"IFERROR(INDEX(Aktivita,SMALL(IF(Cieľ=$B$2,ROW(Aktivita)-MIN(ROW(Aktivita))+1),ROWS($B$3:B72)))&\" \"&CHAR(10)&(INDEX(Výsledok,SMALL(IF(Cieľ=$B$2,ROW(Výsledok)-MIN(ROW(Výsledok))+1),ROWS($B$3:B72))))&CHAR(10),\"\")","v":""},null,{"$f":"IFERROR(INDEX(Aktivita,SMALL(IF(Cieľ=$D$2,ROW(Aktivita)-MIN(ROW(Aktivita))+1),ROWS($B$3:B72)))&CHAR(10),\"\")","v":""},null,{"$f":"IFERROR(INDEX(Aktivita,SMALL(IF(Cieľ=$F$2,ROW(Aktivita)-MIN(ROW(Aktivita))+1),ROWS($B$3:B72)))&CHAR(10),\"\")","v":""},null,{"$f":"IFERROR(INDEX(Aktivita,SMALL(IF(Cieľ=$H$2,ROW(Aktivita)-MIN(ROW(Aktivita))+1),ROWS($B$3:B72)))&CHAR(10),\"\")","v":""}]
[null,{"$f":"IFERROR(INDEX(Aktivita,SMALL(IF(Cieľ=$B$2,ROW(Aktivita)-MIN(ROW(Aktivita))+1),ROWS($B$3:B73)))&\" \"&CHAR(10)&(INDEX(Výsledok,SMALL(IF(Cieľ=$B$2,ROW(Výsledok)-MIN(ROW(Výsledok))+1),ROWS($B$3:B73))))&CHAR(10),\"\")","v":""},null,{"$f":"IFERROR(INDEX(Aktivita,SMALL(IF(Cieľ=$D$2,ROW(Aktivita)-MIN(ROW(Aktivita))+1),ROWS($B$3:B73)))&CHAR(10),\"\")","v":""},null,{"$f":"IFERROR(INDEX(Aktivita,SMALL(IF(Cieľ=$F$2,ROW(Aktivita)-MIN(ROW(Aktivita))+1),ROWS($B$3:B73)))&CHAR(10),\"\")","v":""},null,{"$f":"IFERROR(INDEX(Aktivita,SMALL(IF(Cieľ=$H$2,ROW(Aktivita)-MIN(ROW(Aktivita))+1),ROWS($B$3:B73)))&CHAR(10),\"\")","v":""}]
[null,{"$f":"IFERROR(INDEX(Aktivita,SMALL(IF(Cieľ=$B$2,ROW(Aktivita)-MIN(ROW(Aktivita))+1),ROWS($B$3:B74)))&\" \"&CHAR(10)&(INDEX(Výsledok,SMALL(IF(Cieľ=$B$2,ROW(Výsledok)-MIN(ROW(Výsledok))+1),ROWS($B$3:B74))))&CHAR(10),\"\")","v":""},null,{"$f":"IFERROR(INDEX(Aktivita,SMALL(IF(Cieľ=$D$2,ROW(Aktivita)-MIN(ROW(Aktivita))+1),ROWS($B$3:B74)))&CHAR(10),\"\")","v":""},null,{"$f":"IFERROR(INDEX(Aktivita,SMALL(IF(Cieľ=$F$2,ROW(Aktivita)-MIN(ROW(Aktivita))+1),ROWS($B$3:B74)))&CHAR(10),\"\")","v":""},null,{"$f":"IFERROR(INDEX(Aktivita,SMALL(IF(Cieľ=$H$2,ROW(Aktivita)-MIN(ROW(Aktivita))+1),ROWS($B$3:B74)))&CHAR(10),\"\")","v":""}]
[null,{"$f":"IFERROR(INDEX(Aktivita,SMALL(IF(Cieľ=$B$2,ROW(Aktivita)-MIN(ROW(Aktivita))+1),ROWS($B$3:B75)))&\" \"&CHAR(10)&(INDEX(Výsledok,SMALL(IF(Cieľ=$B$2,ROW(Výsledok)-MIN(ROW(Výsledok))+1),ROWS($B$3:B75))))&CHAR(10),\"\")","v":""},null,{"$f":"IFERROR(INDEX(Aktivita,SMALL(IF(Cieľ=$D$2,ROW(Aktivita)-MIN(ROW(Aktivita))+1),ROWS($B$3:B75)))&CHAR(10),\"\")","v":""},null,{"$f":"IFERROR(INDEX(Aktivita,SMALL(IF(Cieľ=$F$2,ROW(Aktivita)-MIN(ROW(Aktivita))+1),ROWS($B$3:B75)))&CHAR(10),\"\")","v":""},null,{"$f":"IFERROR(INDEX(Aktivita,SMALL(IF(Cieľ=$H$2,ROW(Aktivita)-MIN(ROW(Aktivita))+1),ROWS($B$3:B75)))&CHAR(10),\"\")","v":""}]
[null,{"$f":"IFERROR(INDEX(Aktivita,SMALL(IF(Cieľ=$B$2,ROW(Aktivita)-MIN(ROW(Aktivita))+1),ROWS($B$3:B76)))&\" \"&CHAR(10)&(INDEX(Výsledok,SMALL(IF(Cieľ=$B$2,ROW(Výsledok)-MIN(ROW(Výsledok))+1),ROWS($B$3:B76))))&CHAR(10),\"\")","v":""},null,{"$f":"IFERROR(INDEX(Aktivita,SMALL(IF(Cieľ=$D$2,ROW(Aktivita)-MIN(ROW(Aktivita))+1),ROWS($B$3:B76)))&CHAR(10),\"\")","v":""},null,{"$f":"IFERROR(INDEX(Aktivita,SMALL(IF(Cieľ=$F$2,ROW(Aktivita)-MIN(ROW(Aktivita))+1),ROWS($B$3:B76)))&CHAR(10),\"\")","v":""},null,{"$f":"IFERROR(INDEX(Aktivita,SMALL(IF(Cieľ=$H$2,ROW(Aktivita)-MIN(ROW(Aktivita))+1),ROWS($B$3:B76)))&CHAR(10),\"\")","v":""}]
[null,{"$f":"IFERROR(INDEX(Aktivita,SMALL(IF(Cieľ=$B$2,ROW(Aktivita)-MIN(ROW(Aktivita))+1),ROWS($B$3:B77)))&\" \"&CHAR(10)&(INDEX(Výsledok,SMALL(IF(Cieľ=$B$2,ROW(Výsledok)-MIN(ROW(Výsledok))+1),ROWS($B$3:B77))))&CHAR(10),\"\")","v":""},null,{"$f":"IFERROR(INDEX(Aktivita,SMALL(IF(Cieľ=$D$2,ROW(Aktivita)-MIN(ROW(Aktivita))+1),ROWS($B$3:B77)))&CHAR(10),\"\")","v":""},null,{"$f":"IFERROR(INDEX(Aktivita,SMALL(IF(Cieľ=$F$2,ROW(Aktivita)-MIN(ROW(Aktivita))+1),ROWS($B$3:B77)))&CHAR(10),\"\")","v":""},null,{"$f":"IFERROR(INDEX(Aktivita,SMALL(IF(Cieľ=$H$2,ROW(Aktivita)-MIN(ROW(Aktivita))+1),ROWS($B$3:B77)))&CHAR(10),\"\")","v":""}]
[null,{"$f":"IFERROR(INDEX(Aktivita,SMALL(IF(Cieľ=$B$2,ROW(Aktivita)-MIN(ROW(Aktivita))+1),ROWS($B$3:B78)))&\" \"&CHAR(10)&(INDEX(Výsledok,SMALL(IF(Cieľ=$B$2,ROW(Výsledok)-MIN(ROW(Výsledok))+1),ROWS($B$3:B78))))&CHAR(10),\"\")","v":""},null,{"$f":"IFERROR(INDEX(Aktivita,SMALL(IF(Cieľ=$D$2,ROW(Aktivita)-MIN(ROW(Aktivita))+1),ROWS($B$3:B78)))&CHAR(10),\"\")","v":""},null,{"$f":"IFERROR(INDEX(Aktivita,SMALL(IF(Cieľ=$F$2,ROW(Aktivita)-MIN(ROW(Aktivita))+1),ROWS($B$3:B78)))&CHAR(10),\"\")","v":""},null,{"$f":"IFERROR(INDEX(Aktivita,SMALL(IF(Cieľ=$H$2,ROW(Aktivita)-MIN(ROW(Aktivita))+1),ROWS($B$3:B78)))&CHAR(10),\"\")","v":""}]
[null,{"$f":"IFERROR(INDEX(Aktivita,SMALL(IF(Cieľ=$B$2,ROW(Aktivita)-MIN(ROW(Aktivita))+1),ROWS($B$3:B79)))&\" \"&CHAR(10)&(INDEX(Výsledok,SMALL(IF(Cieľ=$B$2,ROW(Výsledok)-MIN(ROW(Výsledok))+1),ROWS($B$3:B79))))&CHAR(10),\"\")","v":""},null,{"$f":"IFERROR(INDEX(Aktivita,SMALL(IF(Cieľ=$D$2,ROW(Aktivita)-MIN(ROW(Aktivita))+1),ROWS($B$3:B79)))&CHAR(10),\"\")","v":""},null,{"$f":"IFERROR(INDEX(Aktivita,SMALL(IF(Cieľ=$F$2,ROW(Aktivita)-MIN(ROW(Aktivita))+1),ROWS($B$3:B79)))&CHAR(10),\"\")","v":""},null,{"$f":"IFERROR(INDEX(Aktivita,SMALL(IF(Cieľ=$H$2,ROW(Aktivita)-MIN(ROW(Aktivita))+1),ROWS($B$3:B79)))&CHAR(10),\"\")","v":""}]
[null,{"$f":"IFERROR(INDEX(Aktivita,SMALL(IF(Cieľ=$B$2,ROW(Aktivita)-MIN(ROW(Aktivita))+1),ROWS($B$3:B80)))&\" \"&CHAR(10)&(INDEX(Výsledok,SMALL(IF(Cieľ=$B$2,ROW(Výsledok)-MIN(ROW(Výsledok))+1),ROWS($B$3:B80))))&CHAR(10),\"\")","v":""},null,{"$f":"IFERROR(INDEX(Aktivita,SMALL(IF(Cieľ=$D$2,ROW(Aktivita)-MIN(ROW(Aktivita))+1),ROWS($B$3:B80)))&CHAR(10),\"\")","v":""},null,{"$f":"IFERROR(INDEX(Aktivita,SMALL(IF(Cieľ=$F$2,ROW(Aktivita)-MIN(ROW(Aktivita))+1),ROWS($B$3:B80)))&CHAR(10),\"\")","v":""},null,{"$f":"IFERROR(INDEX(Aktivita,SMALL(IF(Cieľ=$H$2,ROW(Aktivita)-MIN(ROW(Aktivita))+1),ROWS($B$3:B80)))&CHAR(10),\"\")","v":""}]
[null,{"$f":"IFERROR(INDEX(Aktivita,SMALL(IF(Cieľ=$B$2,ROW(Aktivita)-MIN(ROW(Aktivita))+1),ROWS($B$3:B81)))&\" \"&CHAR(10)&(INDEX(Výsledok,SMALL(IF(Cieľ=$B$2,ROW(Výsledok)-MIN(ROW(Výsledok))+1),ROWS($B$3:B81))))&CHAR(10),\"\")","v":""},null,{"$f":"IFERROR(INDEX(Aktivita,SMALL(IF(Cieľ=$D$2,ROW(Aktivita)-MIN(ROW(Aktivita))+1),ROWS($B$3:B81)))&CHAR(10),\"\")","v":""},null,{"$f":"IFERROR(INDEX(Aktivita,SMALL(IF(Cieľ=$F$2,ROW(Aktivita)-MIN(ROW(Aktivita))+1),ROWS($B$3:B81)))&CHAR(10),\"\")","v":""},null,{"$f":"IFERROR(INDEX(Aktivita,SMALL(IF(Cieľ=$H$2,ROW(Aktivita)-MIN(ROW(Aktivita))+1),ROWS($B$3:B81)))&CHAR(10),\"\")","v":""}]
[null,{"$f":"IFERROR(INDEX(Aktivita,SMALL(IF(Cieľ=$B$2,ROW(Aktivita)-MIN(ROW(Aktivita))+1),ROWS($B$3:B82)))&\" \"&CHAR(10)&(INDEX(Výsledok,SMALL(IF(Cieľ=$B$2,ROW(Výsledok)-MIN(ROW(Výsledok))+1),ROWS($B$3:B82))))&CHAR(10),\"\")","v":""},null,{"$f":"IFERROR(INDEX(Aktivita,SMALL(IF(Cieľ=$D$2,ROW(Aktivita)-MIN(ROW(Aktivita))+1),ROWS($B$3:B82)))&CHAR(10),\"\")","v":""},null,{"$f":"IFERROR(INDEX(Aktivita,SMALL(IF(Cieľ=$F$2,ROW(Aktivita)-MIN(ROW(Aktivita))+1),ROWS($B$3:B82)))&CHAR(10),\"\")","v":""},null,{"$f":"IFERROR(INDEX(Aktivita,SMALL(IF(Cieľ=$H$2,ROW(Aktivita)-MIN(ROW(Aktivita))+1),ROWS($B$3:B82)))&CHAR(10),\"\")","v":""}]
[null,{"$f":"IFERROR(INDEX(Aktivita,SMALL(IF(Cieľ=$B$2,ROW(Aktivita)-MIN(ROW(Aktivita))+1),ROWS($B$3:B83)))&\" \"&CHAR(10)&(INDEX(Výsledok,SMALL(IF(Cieľ=$B$2,ROW(Výsledok)-MIN(ROW(Výsledok))+1),ROWS($B$3:B83))))&CHAR(10),\"\")","v":""},null,{"$f":"IFERROR(INDEX(Aktivita,SMALL(IF(Cieľ=$D$2,ROW(Aktivita)-MIN(ROW(Aktivita))+1),ROWS($B$3:B83)))&CHAR(10),\"\")","v":""},null,{"$f":"IFERROR(INDEX(Aktivita,SMALL(IF(Cieľ=$F$2,ROW(Aktivita)-MIN(ROW(Aktivita))+1),ROWS($B$3:B83)))&CHAR(10),\"\")","v":""},null,{"$f":"IFERROR(INDEX(Aktivita,SMALL(IF(Cieľ=$H$2,ROW(Aktivita)-MIN(ROW(Aktivita))+1),ROWS($B$3:B83)))&CHAR(10),\"\")","v":""}]
[null,{"$f":"IFERROR(INDEX(Aktivita,SMALL(IF(Cieľ=$B$2,ROW(Aktivita)-MIN(ROW(Aktivita))+1),ROWS($B$3:B84)))&\" \"&CHAR(10)&(INDEX(Výsledok,SMALL(IF(Cieľ=$B$2,ROW(Výsledok)-MIN(ROW(Výsledok))+1),ROWS($B$3:B84))))&CHAR(10),\"\")","v":""},null,{"$f":"IFERROR(INDEX(Aktivita,SMALL(IF(Cieľ=$D$2,ROW(Aktivita)-MIN(ROW(Aktivita))+1),ROWS($B$3:B84)))&CHAR(10),\"\")","v":""},null,{"$f":"IFERROR(INDEX(Aktivita,SMALL(IF(Cieľ=$F$2,ROW(Aktivita)-MIN(ROW(Aktivita))+1),ROWS($B$3:B84)))&CHAR(10),\"\")","v":""},null,{"$f":"IFERROR(INDEX(Aktivita,SMALL(IF(Cieľ=$H$2,ROW(Aktivita)-MIN(ROW(Aktivita))+1),ROWS($B$3:B84)))&CHAR(10),\"\")","v":""}]
[null,{"$f":"IFERROR(INDEX(Aktivita,SMALL(IF(Cieľ=$B$2,ROW(Aktivita)-MIN(ROW(Aktivita))+1),ROWS($B$3:B85)))&\" \"&CHAR(10)&(INDEX(Výsledok,SMALL(IF(Cieľ=$B$2,ROW(Výsledok)-MIN(ROW(Výsledok))+1),ROWS($B$3:B85))))&CHAR(10),\"\")","v":""},null,{"$f":"IFERROR(INDEX(Aktivita,SMALL(IF(Cieľ=$D$2,ROW(Aktivita)-MIN(ROW(Aktivita))+1),ROWS($B$3:B85)))&CHAR(10),\"\")","v":""},null,{"$f":"IFERROR(INDEX(Aktivita,SMALL(IF(Cieľ=$F$2,ROW(Aktivita)-MIN(ROW(Aktivita))+1),ROWS($B$3:B85)))&CHAR(10),\"\")","v":""},null,{"$f":"IFERROR(INDEX(Aktivita,SMALL(IF(Cieľ=$H$2,ROW(Aktivita)-MIN(ROW(Aktivita))+1),ROWS($B$3:B85)))&CHAR(10),\"\")","v":""}]
[null,{"$f":"IFERROR(INDEX(Aktivita,SMALL(IF(Cieľ=$B$2,ROW(Aktivita)-MIN(ROW(Aktivita))+1),ROWS($B$3:B86)))&\" \"&CHAR(10)&(INDEX(Výsledok,SMALL(IF(Cieľ=$B$2,ROW(Výsledok)-MIN(ROW(Výsledok))+1),ROWS($B$3:B86))))&CHAR(10),\"\")","v":""},null,{"$f":"IFERROR(INDEX(Aktivita,SMALL(IF(Cieľ=$D$2,ROW(Aktivita)-MIN(ROW(Aktivita))+1),ROWS($B$3:B86)))&CHAR(10),\"\")","v":""},null,{"$f":"IFERROR(INDEX(Aktivita,SMALL(IF(Cieľ=$F$2,ROW(Aktivita)-MIN(ROW(Aktivita))+1),ROWS($B$3:B86)))&CHAR(10),\"\")","v":""},null,{"$f":"IFERROR(INDEX(Aktivita,SMALL(IF(Cieľ=$H$2,ROW(Aktivita)-MIN(ROW(Aktivita))+1),ROWS($B$3:B86)))&CHAR(10),\"\")","v":""}]
[null,{"$f":"IFERROR(INDEX(Aktivita,SMALL(IF(Cieľ=$B$2,ROW(Aktivita)-MIN(ROW(Aktivita))+1),ROWS($B$3:B87)))&\" \"&CHAR(10)&(INDEX(Výsledok,SMALL(IF(Cieľ=$B$2,ROW(Výsledok)-MIN(ROW(Výsledok))+1),ROWS($B$3:B87))))&CHAR(10),\"\")","v":""},null,{"$f":"IFERROR(INDEX(Aktivita,SMALL(IF(Cieľ=$D$2,ROW(Aktivita)-MIN(ROW(Aktivita))+1),ROWS($B$3:B87)))&CHAR(10),\"\")","v":""},null,{"$f":"IFERROR(INDEX(Aktivita,SMALL(IF(Cieľ=$F$2,ROW(Aktivita)-MIN(ROW(Aktivita))+1),ROWS($B$3:B87)))&CHAR(10),\"\")","v":""},null,{"$f":"IFERROR(INDEX(Aktivita,SMALL(IF(Cieľ=$H$2,ROW(Aktivita)-MIN(ROW(Aktivita))+1),ROWS($B$3:B87)))&CHAR(10),\"\")","v":""}]
[null,{"$f":"IFERROR(INDEX(Aktivita,SMALL(IF(Cieľ=$B$2,ROW(Aktivita)-MIN(ROW(Aktivita))+1),ROWS($B$3:B88)))&\" \"&CHAR(10)&(INDEX(Výsledok,SMALL(IF(Cieľ=$B$2,ROW(Výsledok)-MIN(ROW(Výsledok))+1),ROWS($B$3:B88))))&CHAR(10),\"\")","v":""},null,{"$f":"IFERROR(INDEX(Aktivita,SMALL(IF(Cieľ=$D$2,ROW(Aktivita)-MIN(ROW(Aktivita))+1),ROWS($B$3:B88)))&CHAR(10),\"\")","v":""},null,{"$f":"IFERROR(INDEX(Aktivita,SMALL(IF(Cieľ=$F$2,ROW(Aktivita)-MIN(ROW(Aktivita))+1),ROWS($B$3:B88)))&CHAR(10),\"\")","v":""},null,{"$f":"IFERROR(INDEX(Aktivita,SMALL(IF(Cieľ=$H$2,ROW(Aktivita)-MIN(ROW(Aktivita))+1),ROWS($B$3:B88)))&CHAR(10),\"\")","v":""}]
[null,{"$f":"IFERROR(INDEX(Aktivita,SMALL(IF(Cieľ=$B$2,ROW(Aktivita)-MIN(ROW(Aktivita))+1),ROWS($B$3:B89)))&\" \"&CHAR(10)&(INDEX(Výsledok,SMALL(IF(Cieľ=$B$2,ROW(Výsledok)-MIN(ROW(Výsledok))+1),ROWS($B$3:B89))))&CHAR(10),\"\")","v":""},null,{"$f":"IFERROR(INDEX(Aktivita,SMALL(IF(Cieľ=$D$2,ROW(Aktivita)-MIN(ROW(Aktivita))+1),ROWS($B$3:B89)))&CHAR(10),\"\")","v":""},null,{"$f":"IFERROR(INDEX(Aktivita,SMALL(IF(Cieľ=$F$2,ROW(Aktivita)-MIN(ROW(Aktivita))+1),ROWS($B$3:B89)))&CHAR(10),\"\")","v":""},null,{"$f":"IFERROR(INDEX(Aktivita,SMALL(IF(Cieľ=$H$2,ROW(Aktivita)-MIN(ROW(Aktivita))+1),ROWS($B$3:B89)))&CHAR(10),\"\")","v":""}]
[null,{"$f":"IFERROR(INDEX(Aktivita,SMALL(IF(Cieľ=$B$2,ROW(Aktivita)-MIN(ROW(Aktivita))+1),ROWS($B$3:B90)))&\" \"&CHAR(10)&(INDEX(Výsledok,SMALL(IF(Cieľ=$B$2,ROW(Výsledok)-MIN(ROW(Výsledok))+1),ROWS($B$3:B90))))&CHAR(10),\"\")","v":""},null,{"$f":"IFERROR(INDEX(Aktivita,SMALL(IF(Cieľ=$D$2,ROW(Aktivita)-MIN(ROW(Aktivita))+1),ROWS($B$3:B90)))&CHAR(10),\"\")","v":""},null,{"$f":"IFERROR(INDEX(Aktivita,SMALL(IF(Cieľ=$F$2,ROW(Aktivita)-MIN(ROW(Aktivita))+1),ROWS($B$3:B90)))&CHAR(10),\"\")","v":""},null,{"$f":"IFERROR(INDEX(Aktivita,SMALL(IF(Cieľ=$H$2,ROW(Aktivita)-MIN(ROW(Aktivita))+1),ROWS($B$3:B90)))&CHAR(10),\"\")","v":""}]
[null,{"$f":"IFERROR(INDEX(Aktivita,SMALL(IF(Cieľ=$B$2,ROW(Aktivita)-MIN(ROW(Aktivita))+1),ROWS($B$3:B91)))&\" \"&CHAR(10)&(INDEX(Výsledok,SMALL(IF(Cieľ=$B$2,ROW(Výsledok)-MIN(ROW(Výsledok))+1),ROWS($B$3:B91))))&CHAR(10),\"\")","v":""},null,{"$f":"IFERROR(INDEX(Aktivita,SMALL(IF(Cieľ=$D$2,ROW(Aktivita)-MIN(ROW(Aktivita))+1),ROWS($B$3:B91)))&CHAR(10),\"\")","v":""},null,{"$f":"IFERROR(INDEX(Aktivita,SMALL(IF(Cieľ=$F$2,ROW(Aktivita)-MIN(ROW(Aktivita))+1),ROWS($B$3:B91)))&CHAR(10),\"\")","v":""},null,{"$f":"IFERROR(INDEX(Aktivita,SMALL(IF(Cieľ=$H$2,ROW(Aktivita)-MIN(ROW(Aktivita))+1),ROWS($B$3:B91)))&CHAR(10),\"\")","v":""}]
[null,{"$f":"IFERROR(INDEX(Aktivita,SMALL(IF(Cieľ=$B$2,ROW(Aktivita)-MIN(ROW(Aktivita))+1),ROWS($B$3:B92)))&\" \"&CHAR(10)&(INDEX(Výsledok,SMALL(IF(Cieľ=$B$2,ROW(Výsledok)-MIN(ROW(Výsledok))+1),ROWS($B$3:B92))))&CHAR(10),\"\")","v":""},null,{"$f":"IFERROR(INDEX(Aktivita,SMALL(IF(Cieľ=$D$2,ROW(Aktivita)-MIN(ROW(Aktivita))+1),ROWS($B$3:B92)))&CHAR(10),\"\")","v":""},null,{"$f":"IFERROR(INDEX(Aktivita,SMALL(IF(Cieľ=$F$2,ROW(Aktivita)-MIN(ROW(Aktivita))+1),ROWS($B$3:B92)))&CHAR(10),\"\")","v":""},null,{"$f":"IFERROR(INDEX(Aktivita,SMALL(IF(Cieľ=$H$2,ROW(Aktivita)-MIN(ROW(Aktivita))+1),ROWS($B$3:B92)))&CHAR(10),\"\")","v":""}]
[null,{"$f":"IFERROR(INDEX(Aktivita,SMALL(IF(Cieľ=$B$2,ROW(Aktivita)-MIN(ROW(Aktivita))+1),ROWS($B$3:B93)))&\" \"&CHAR(10)&(INDEX(Výsledok,SMALL(IF(Cieľ=$B$2,ROW(Výsledok)-MIN(ROW(Výsledok))+1),ROWS($B$3:B93))))&CHAR(10),\"\")","v":""},null,{"$f":"IFERROR(INDEX(Aktivita,SMALL(IF(Cieľ=$D$2,ROW(Aktivita)-MIN(ROW(Aktivita))+1),ROWS($B$3:B93)))&CHAR(10),\"\")","v":""},null,{"$f":"IFERROR(INDEX(Aktivita,SMALL(IF(Cieľ=$F$2,ROW(Aktivita)-MIN(ROW(Aktivita))+1),ROWS($B$3:B93)))&CHAR(10),\"\")","v":""},null,{"$f":"IFERROR(INDEX(Aktivita,SMALL(IF(Cieľ=$H$2,ROW(Aktivita)-MIN(ROW(Aktivita))+1),ROWS($B$3:B93)))&CHAR(10),\"\")","v":""}]
[null,{"$f":"IFERROR(INDEX(Aktivita,SMALL(IF(Cieľ=$B$2,ROW(Aktivita)-MIN(ROW(Aktivita))+1),ROWS($B$3:B94)))&\" \"&CHAR(10)&(INDEX(Výsledok,SMALL(IF(Cieľ=$B$2,ROW(Výsledok)-MIN(ROW(Výsledok))+1),ROWS($B$3:B94))))&CHAR(10),\"\")","v":""},null,{"$f":"IFERROR(INDEX(Aktivita,SMALL(IF(Cieľ=$D$2,ROW(Aktivita)-MIN(ROW(Aktivita))+1),ROWS($B$3:B94)))&CHAR(10),\"\")","v":""},null,{"$f":"IFERROR(INDEX(Aktivita,SMALL(IF(Cieľ=$F$2,ROW(Aktivita)-MIN(ROW(Aktivita))+1),ROWS($B$3:B94)))&CHAR(10),\"\")","v":""},null,{"$f":"IFERROR(INDEX(Aktivita,SMALL(IF(Cieľ=$H$2,ROW(Aktivita)-MIN(ROW(Aktivita))+1),ROWS($B$3:B94)))&CHAR(10),\"\")","v":""}]
[null,{"$f":"IFERROR(INDEX(Aktivita,SMALL(IF(Cieľ=$B$2,ROW(Aktivita)-MIN(ROW(Aktivita))+1),ROWS($B$3:B95)))&\" \"&CHAR(10)&(INDEX(Výsledok,SMALL(IF(Cieľ=$B$2,ROW(Výsledok)-MIN(ROW(Výsledok))+1),ROWS($B$3:B95))))&CHAR(10),\"\")","v":""},null,{"$f":"IFERROR(INDEX(Aktivita,SMALL(IF(Cieľ=$D$2,ROW(Aktivita)-MIN(ROW(Aktivita))+1),ROWS($B$3:B95)))&CHAR(10),\"\")","v":""},null,{"$f":"IFERROR(INDEX(Aktivita,SMALL(IF(Cieľ=$F$2,ROW(Aktivita)-MIN(ROW(Aktivita))+1),ROWS($B$3:B95)))&CHAR(10),\"\")","v":""},null,{"$f":"IFERROR(INDEX(Aktivita,SMALL(IF(Cieľ=$H$2,ROW(Aktivita)-MIN(ROW(Aktivita))+1),ROWS($B$3:B95)))&CHAR(10),\"\")","v":""}]
[null,{"$f":"IFERROR(INDEX(Aktivita,SMALL(IF(Cieľ=$B$2,ROW(Aktivita)-MIN(ROW(Aktivita))+1),ROWS($B$3:B96)))&\" \"&CHAR(10)&(INDEX(Výsledok,SMALL(IF(Cieľ=$B$2,ROW(Výsledok)-MIN(ROW(Výsledok))+1),ROWS($B$3:B96))))&CHAR(10),\"\")","v":""},null,{"$f":"IFERROR(INDEX(Aktivita,SMALL(IF(Cieľ=$D$2,ROW(Aktivita)-MIN(ROW(Aktivita))+1),ROWS($B$3:B96)))&CHAR(10),\"\")","v":""},null,{"$f":"IFERROR(INDEX(Aktivita,SMALL(IF(Cieľ=$F$2,ROW(Aktivita)-MIN(ROW(Aktivita))+1),ROWS($B$3:B96)))&CHAR(10),\"\")","v":""},null,{"$f":"IFERROR(INDEX(Aktivita,SMALL(IF(Cieľ=$H$2,ROW(Aktivita)-MIN(ROW(Aktivita))+1),ROWS($B$3:B96)))&CHAR(10),\"\")","v":""}]
[null,{"$f":"IFERROR(INDEX(Aktivita,SMALL(IF(Cieľ=$B$2,ROW(Aktivita)-MIN(ROW(Aktivita))+1),ROWS($B$3:B97)))&\" \"&CHAR(10)&(INDEX(Výsledok,SMALL(IF(Cieľ=$B$2,ROW(Výsledok)-MIN(ROW(Výsledok))+1),ROWS($B$3:B97))))&CHAR(10),\"\")","v":""},null,{"$f":"IFERROR(INDEX(Aktivita,SMALL(IF(Cieľ=$D$2,ROW(Aktivita)-MIN(ROW(Aktivita))+1),ROWS($B$3:B97)))&CHAR(10),\"\")","v":""},null,{"$f":"IFERROR(INDEX(Aktivita,SMALL(IF(Cieľ=$F$2,ROW(Aktivita)-MIN(ROW(Aktivita))+1),ROWS($B$3:B97)))&CHAR(10),\"\")","v":""},null,{"$f":"IFERROR(INDEX(Aktivita,SMALL(IF(Cieľ=$H$2,ROW(Aktivita)-MIN(ROW(Aktivita))+1),ROWS($B$3:B97)))&CHAR(10),\"\")","v":""}]
[null,{"$f":"IFERROR(INDEX(Aktivita,SMALL(IF(Cieľ=$B$2,ROW(Aktivita)-MIN(ROW(Aktivita))+1),ROWS($B$3:B98)))&\" \"&CHAR(10)&(INDEX(Výsledok,SMALL(IF(Cieľ=$B$2,ROW(Výsledok)-MIN(ROW(Výsledok))+1),ROWS($B$3:B98))))&CHAR(10),\"\")","v":""},null,{"$f":"IFERROR(INDEX(Aktivita,SMALL(IF(Cieľ=$D$2,ROW(Aktivita)-MIN(ROW(Aktivita))+1),ROWS($B$3:B98)))&CHAR(10),\"\")","v":""},null,{"$f":"IFERROR(INDEX(Aktivita,SMALL(IF(Cieľ=$F$2,ROW(Aktivita)-MIN(ROW(Aktivita))+1),ROWS($B$3:B98)))&CHAR(10),\"\")","v":""},null,{"$f":"IFERROR(INDEX(Aktivita,SMALL(IF(Cieľ=$H$2,ROW(Aktivita)-MIN(ROW(Aktivita))+1),ROWS($B$3:B98)))&CHAR(10),\"\")","v":""}]
[null,{"$f":"IFERROR(INDEX(Aktivita,SMALL(IF(Cieľ=$B$2,ROW(Aktivita)-MIN(ROW(Aktivita))+1),ROWS($B$3:B99)))&\" \"&CHAR(10)&(INDEX(Výsledok,SMALL(IF(Cieľ=$B$2,ROW(Výsledok)-MIN(ROW(Výsledok))+1),ROWS($B$3:B99))))&CHAR(10),\"\")","v":""},null,{"$f":"IFERROR(INDEX(Aktivita,SMALL(IF(Cieľ=$D$2,ROW(Aktivita)-MIN(ROW(Aktivita))+1),ROWS($B$3:B99)))&CHAR(10),\"\")","v":""},null,{"$f":"IFERROR(INDEX(Aktivita,SMALL(IF(Cieľ=$F$2,ROW(Aktivita)-MIN(ROW(Aktivita))+1),ROWS($B$3:B99)))&CHAR(10),\"\")","v":""},null,{"$f":"IFERROR(INDEX(Aktivita,SMALL(IF(Cieľ=$H$2,ROW(Aktivita)-MIN(ROW(Aktivita))+1),ROWS($B$3:B99)))&CHAR(10),\"\")","v":""}]
[null,{"$f":"IFERROR(INDEX(Aktivita,SMALL(IF(Cieľ=$B$2,ROW(Aktivita)-MIN(ROW(Aktivita))+1),ROWS($B$3:B100)))&\" \"&CHAR(10)&(INDEX(Výsledok,SMALL(IF(Cieľ=$B$2,ROW(Výsledok)-MIN(ROW(Výsledok))+1),ROWS($B$3:B100))))&CHAR(10),\"\")","v":""},null,{"$f":"IFERROR(INDEX(Aktivita,SMALL(IF(Cieľ=$D$2,ROW(Aktivita)-MIN(ROW(Aktivita))+1),ROWS($B$3:B100)))&CHAR(10),\"\")","v":""},null,{"$f":"IFERROR(INDEX(Aktivita,SMALL(IF(Cieľ=$F$2,ROW(Aktivita)-MIN(ROW(Aktivita))+1),ROWS($B$3:B100)))&CHAR(10),\"\")","v":""},null,{"$f":"IFERROR(INDEX(Aktivita,SMALL(IF(Cieľ=$H$2,ROW(Aktivita)-MIN(ROW(Aktivita))+1),ROWS($B$3:B100)))&CHAR(10),\"\")","v":""}]

{"sheet":"Informácie","index":2,"n_rows":6,"n_cols":1,"rows_kept":6}
["Informácie o tomto zošite"]
["Pokyny pre čítačky obrazovky"]
["Tento zošit obsahuje 3 hárky. \n\nÚdaje plánu\nFlexibilný plán\nInformácie\n\nV každom hárku sú v stĺpci A od bunky A1 uvedené pokyny pre príslušný hárok. Pokyny sú napísané ako skrytý text. Každý krok vás prevedie informáciami v danom riadku. Nasledujúci krok pokračuje v bunke A2, A3 a tak ďalej, pokiaľ nie je výslovne uvedené inak. V texte s pokynmi môže byť napríklad uvedené, že ďalší krok nájdete v bunke A6. \n\nSkrytý text sa nevytlačí.\n\nAk chcete odstrániť tieto pokyny z ktoréhokoľvek hárka, jednoducho odstráňte stĺpec A.\n"]
["Informácie o tomto zošite"]
["Zadajte informácie o medzníkoch do hárka Údaje plánu.  Nezabudnite zoradiť tabuľku podľa priority a potom podľa medzníkov, aby sa dokončené, aktuálne, krátkodobé a budúce ciele zobrazili v poradí s klesajúcou prioritou a položky s najvyššou prioritou boli uvedené v hornej časti tabuľky. Plán v hárku Agilný plán sa aktualizuje automaticky.\n"]
["Toto je posledný pokyn v tomto hárku."]